Workbook

Sheet SolCotizacion
B1: Solicitud de Cotización Acuerdo Marco Microsoft 2G
B3: Versión: 46 | C3: 2019-06-10
B4: Información de la Entidad Compradora
B6: Nombre de la Entidad | E6: Universidad Distrital Francisco Jose de Caldas | K6: NIT | M6: 899999230-7
B8: Dirección de la Entidad | E8: Carrera 7 No. 40B - 53 | K8: Correo de contacto | M8: vicerrecadmin@udistrital.edu.co
B10: Municipio | E10: Bogota D.C. | K10: Teléfono de contacto | M10: 3239300 ext. 1804 - 1802
B12: Nombre funcionario Comprador | E12: Eduard Arnulfo Pinila Rivera
B16: Solicitud de Cotización
B18: Categoría | E18: Categoría 5 | I18: Valor TRM | J18: 3357.82 | M18: Fecha de lanzamiento del evento de cotización | N18: 14 DE JUNIO DE 2019
I19: Escribir hasta dos cifras decimales. Tenga en cuenta que el simulador aproxima al entero más cercano.
B20: Productos
A22: *Libros, revistas, cartillas y/o catálogo Segmento 1. | B22: =E18 -> Categoría 5 | C22: =VLOOKUP(B22,Categorias!$A:$B,2,0) -> Campus (Educativo)
B24: Cantidad de filas:
B25: 1
B27: Item | C27: Código Catálogo | E27: Descripción del Producto | I27: Tipo | J27: Unidad | K27: Zona | L27: Asistencia | M27: Perfil | N27: Número de parte | O27: Forma de Pago | P27: cantidad
A28: =E28&L28 -> Microsoft® M365 EDU A3 Unified Shared ALNG MonthlySub MVL Per User for CoreCAL Faculty AN/A | B28: 1 | C28: AAD-38392A | E28: =VLOOKUP($C28&$E$18,Consolidado!$B:$U,9,0) -> Microsoft® M365 EDU A3 Unified Shared ALNG MonthlySub MVL Per User for CoreCAL Faculty A | I28: =VLOOKUP($C28&$E$18,Consolidado!$B:$U,12,0) -> Producto | J28: =VLOOKUP($C28&$E$18,Consolidado!$B:$U,10,0) -> Unidad | K28: =VLOOKUP($C28&$E$18,Consolidado!$B:$U,13,0) -> N/A | L28: =VLOOKUP($C28&$E$18,Consolidado!$B:$U,14,0) -> N/A | M28: =VLOOKUP($C28&$E$18,Consolidado!$B:$U,15,0) -> N/A | N28: =VLOOKUP($C28&$E$18,Consolidado!$B:$U,16,0) -> AAD-38392 | O28: =VLOOKUP($C28&$E$18,Consolidado!$B:$U,17,0) -> Suscripción Mensual con pago anual | P28: 13008
A29: Microsoft®ProjectProfessional AllLng License/SoftwareAssurancePack MVL 1License w/1ProjectSvrCAL Additional Product No level N/A | B29: 2 | C29: H30-00237ANL | E29: =VLOOKUP($C29&$E$18,Consolidado!$B:$U,9,0) -> Microsoft®ProjectProfessional AllLng License/SoftwareAssurancePack MVL 1License w/1ProjectSvrCAL Additional Product No level | I29: =VLOOKUP($C29&$E$18,Consolidado!$B:$U,12,0) -> Producto | J29: =VLOOKUP($C29&$E$18,Consolidado!$B:$U,10,0) -> Unidad | K29: =VLOOKUP($C29&$E$18,Consolidado!$B:$U,13,0) -> N/A | L29: =VLOOKUP($C29&$E$18,Consolidado!$B:$U,14,0) -> N/A | M29: =VLOOKUP($C29&$E$18,Consolidado!$B:$U,15,0) -> N/A | N29: =VLOOKUP($C29&$E$18,Consolidado!$B:$U,16,0) -> H30-00237 | O29: =VLOOKUP($C29&$E$18,Consolidado!$B:$U,17,0) -> Suscripción Anual | P29: 60
A30: Microsoft®SQLSvrEnterpriseCore AllLng License/SoftwareAssurancePack MVL 2Licenses CoreLic Additional Product No level N/A | B30: 3 | C30: 7JQ-00341 | E30: =VLOOKUP($C30&$E$18,Consolidado!$B:$U,9,0) -> Microsoft®SQLSvrEnterpriseCore AllLng License/SoftwareAssurancePack MVL 2Licenses CoreLic Additional Product No level | I30: =VLOOKUP($C30&$E$18,Consolidado!$B:$U,12,0) -> Producto | J30: =VLOOKUP($C30&$E$18,Consolidado!$B:$U,10,0) -> Unidad | K30: =VLOOKUP($C30&$E$18,Consolidado!$B:$U,13,0) -> N/A | L30: =VLOOKUP($C30&$E$18,Consolidado!$B:$U,14,0) -> N/A | M30: =VLOOKUP($C30&$E$18,Consolidado!$B:$U,15,0) -> N/A | N30: =VLOOKUP($C30&$E$18,Consolidado!$B:$U,16,0) -> 7JQ-00341 | O30: =VLOOKUP($C30&$E$18,Consolidado!$B:$U,17,0) -> Suscripción Anual | P30: 2
A31: Microsoft®Visio®Professional AllLng License/SoftwareAssurancePack MVL 1License Additional Product No level N/A | B31: 4 | C31: D87-01057ANL | E31: =VLOOKUP($C31&$E$18,Consolidado!$B:$U,9,0) -> Microsoft®Visio®Professional AllLng License/SoftwareAssurancePack MVL 1License Additional Product No level | I31: =VLOOKUP($C31&$E$18,Consolidado!$B:$U,12,0) -> Producto | J31: =VLOOKUP($C31&$E$18,Consolidado!$B:$U,10,0) -> Unidad | K31: =VLOOKUP($C31&$E$18,Consolidado!$B:$U,13,0) -> N/A | L31: =VLOOKUP($C31&$E$18,Consolidado!$B:$U,14,0) -> N/A | M31: =VLOOKUP($C31&$E$18,Consolidado!$B:$U,15,0) -> N/A | N31: =VLOOKUP($C31&$E$18,Consolidado!$B:$U,16,0) -> D87-01057 | O31: =VLOOKUP($C31&$E$18,Consolidado!$B:$U,17,0) -> Suscripción Anual | P31: 60
A32: Microsoft®WinRmtDsktpSvcsCAL AllLng License/SoftwareAssurancePack MVL 1License DvcCAL Additional Product No level N/A | B32: 5 | C32: 6VC-01251ANL | E32: =VLOOKUP($C32&$E$18,Consolidado!$B:$U,9,0) -> Microsoft®WinRmtDsktpSvcsCAL AllLng License/SoftwareAssurancePack MVL 1License DvcCAL Additional Product No level | I32: =VLOOKUP($C32&$E$18,Consolidado!$B:$U,12,0) -> Producto | J32: =VLOOKUP($C32&$E$18,Consolidado!$B:$U,10,0) -> Unidad | K32: =VLOOKUP($C32&$E$18,Consolidado!$B:$U,13,0) -> N/A | L32: =VLOOKUP($C32&$E$18,Consolidado!$B:$U,14,0) -> N/A | M32: =VLOOKUP($C32&$E$18,Consolidado!$B:$U,15,0) -> N/A | N32: =VLOOKUP($C32&$E$18,Consolidado!$B:$U,16,0) -> 6VC-01251 | O32: =VLOOKUP($C32&$E$18,Consolidado!$B:$U,17,0) -> Suscripción Anual | P32: 300
A33: Microsoft®WindowsServerSTDCORE AllLng License/SoftwareAssurancePack MVL 2Licenses CoreLic Additional Product No level N/A | B33: 6 | C33: 9EM-00562 | E33: =VLOOKUP($C33&$E$18,Consolidado!$B:$U,9,0) -> Microsoft®WindowsServerSTDCORE AllLng License/SoftwareAssurancePack MVL 2Licenses CoreLic Additional Product No level | I33: =VLOOKUP($C33&$E$18,Consolidado!$B:$U,12,0) -> Producto | J33: =VLOOKUP($C33&$E$18,Consolidado!$B:$U,10,0) -> Unidad | K33: =VLOOKUP($C33&$E$18,Consolidado!$B:$U,13,0) -> N/A | L33: =VLOOKUP($C33&$E$18,Consolidado!$B:$U,14,0) -> N/A | M33: =VLOOKUP($C33&$E$18,Consolidado!$B:$U,15,0) -> N/A | N33: =VLOOKUP($C33&$E$18,Consolidado!$B:$U,16,0) -> 9EM-00562 | O33: =VLOOKUP($C33&$E$18,Consolidado!$B:$U,17,0) -> Suscripción Anual | P33: 200
A34: Microsoft®Windows®ServerCAL AllLng License/SoftwareAssurancePack MVL 1License DvcCAL Faculty No level N/A | B34: 7 | C34: R18-00095 | E34: =VLOOKUP($C34&$E$18,Consolidado!$B:$U,9,0) -> Microsoft®Windows®ServerCAL AllLng License/SoftwareAssurancePack MVL 1License DvcCAL Faculty No level | I34: =VLOOKUP($C34&$E$18,Consolidado!$B:$U,12,0) -> Producto | J34: =VLOOKUP($C34&$E$18,Consolidado!$B:$U,10,0) -> Unidad | K34: =VLOOKUP($C34&$E$18,Consolidado!$B:$U,13,0) -> N/A | L34: =VLOOKUP($C34&$E$18,Consolidado!$B:$U,14,0) -> N/A | M34: =VLOOKUP($C34&$E$18,Consolidado!$B:$U,15,0) -> N/A | N34: =VLOOKUP($C34&$E$18,Consolidado!$B:$U,16,0) -> R18-00095 | O34: =VLOOKUP($C34&$E$18,Consolidado!$B:$U,17,0) -> Suscripción Anual | P34: 1084
B35: 1. Si requiere agregue o elimine fila
B38: Gravámenes adicionales*
B39: Si los hay, indique los gravámenes adicionales a los que está sujeta la Orden de Compra. Son gravámenes adicionales por ejemplo; estampillas y demás impuestos territoriales. Los impuestos como ICA y retención en la fuente NO son gravámenes adicionales.
B40: Gravámenes adicionales (estampillas)
B41: No | C41: Descripción | H41: Porcentaje
B42: 1 | C42: Estampilla "Universidad Distrital Francisco José de Caldas"- 50 Años | H42: 0.011
B43: 2 | C43: Estampilla Pro Cultura | H43: 0.005
B44: 3 | C44: Estampilla Pro Adulto Mayor | H44: 0.02
F45: Total porcentaje: | H45: =SUM(H42:H44) -> 0.036
D46: Filas a agregar o eliminar Gravámenes:
D47: 1

Sheet Anexo
B1: Con el objetivo de complementar el entendimiento sobre la solicitud de Productos y Servicios Microsoft , por favor diligencie la totalidad de la información que se pide a continuación.
B3: Tenga en cuenta que esta información es de utilidad para que el Proveedor pueda cotizar de la manera más precisa posible los Productos y Servicios Microsoft solicitados, por lo cual la exactitud y completitud es muy importante.
A4: No | B4: Requerimiento adicional | C4: Descripción | D4: INFORMACION SUMINISTRADA POR LA ENTIDAD COMPRADORA
B5: Nombre y Nit de la Entidad Estatal a la cual se le entregará la titularidad de las licencias adquiridas. | D5: Universidad Distrital Francisco José de Caldas. NIT: 899.999.230-7
A6: 1 | B6: Lugar de entrega de los Productos y Servicios Microsoft. (Especificar dirección y ciudad de entrega). | D6: Cra 7#40b-53
A7: 2 | B7: Datos Contacto de entrega (Especificar nombre, teléfono y correo electrónico). | D7: MARTHA CECILIA VALDÉS CRUZ Tel. 3239300 Ext. 1301 servidores@udistrital.edu.co
A8: 3 | B8: Funciones a realizar el soporte en sitio. | D8: N/A
A9: 4 | B9: Área de conocimiento de las personas que prestan el servicio de soporte técnico proactivo. | D9: N/A
A10: 5 | B10: Área de conocimiento de las personas que prestan el servicio de soporte técnico reactivo. | D10: N/A
A11: 6 | B11: Mecanismo de solicitud del soporte reactivo. | D11: N/A
A12: 7 | B12: Especificar que información o que bases de datos se van a migrar. Aplica en el caso que la Entidad Compradora solicite el servicio de migración de información o de bases de datos. | D12: N/A
A13: 8 | B13: Actividades del gerente de cuenta. | D13: N/A
A14: 9 | B14: Indique número de personas que requieren de capacitación. En caso que la Entidad Compradora solicite el servicio de capacitación usuario final o usuario técnico. | D14: N/A
A15: 10 | B15: Especificar características de configuración y descripción de las tareas a realizar. En caso que la Entidad Compradora solicite el servicio de configuración y parametrización. | D15: N/A
A16: 12 | B16: Establecer las políticas de respaldo de información. | D16: N/A

Sheet ResumenCotizacion
B1: Solicitud de Cotización Acuerdo Marco Microsoft 2G
B3: =SolCotizacion!B3 -> Versión: 46 | C3: =SolCotizacion!C3 -> 2019-06-10
B4: Información de la Entidad Compradora
B6: Nombre de la Entidad | E6: Universidad Distrital Francisco Jose de Caldas | K6: NIT | M6: 899999230-7
B8: Dirección de la Entidad | E8: Carrera 7 No. 40B - 53 | K8: Correo de contacto | M8: vicerrecadmin@udistrital.edu.co
B10: Municipio | E10: Bogota D.C. | K10: Teléfono de contacto | M10: 3239300 ext. 1804 - 1802
B12: Nombre funcionario Comprador | E12: Eduard Arnulfo Pinila Rivera
B16: Solicitud de Cotización
B18: Categoría | E18: Categoría 5 | I18: Valor TRM | J18: =SolCotizacion!J18 -> 3357.82 | M18: Fecha | N18: =SolCotizacion!N18 -> 14 DE JUNIO DE 2019
B20: Productos
A22: *Libros, revistas, cartillas y/o catálogo Segmento 1. | B22: =SolCotizacion!B22 -> Categoría 5 | C22: =SolCotizacion!C22 -> Campus (Educativo)
B24: Cantidad de filas:
B25: 1
B27: Item | C27: Código Catálogo | E27: Descripción del Producto | I27: Tipo | J27: Unidad | K27: Zona | L27: Asistencia | M27: Perfil | N27: Número de parte | O27: Forma de Pago | P27: cantidad | Q27: Precio Unitario | R27: Precio Unitario + Gravamen | S27: Subtotal | T27: IVA | U27: Precio Total
A28: Microsoft® M365 EDU A3 Unified Shared ALNG MonthlySub MVL Per User for CoreCAL Faculty AN/A | B28: 1 | C28: AAD-38392A | E28: Microsoft® M365 EDU A3 Unified Shared ALNG MonthlySub MVL Per User for CoreCAL Faculty A | I28: Producto | J28: Unidad | K28: N/A | L28: N/A | M28: N/A | N28: AAD-38392 | O28: Suscripción Mensual con pago anual | P28: 13008 | Q28: =VLOOKUP("UT Soft-IG"&$E$18&$C28,temp!$A:$Y,19,0)*$J$18 -> 15983.2232 | R28: =ROUND(Q28/(1-(VLOOKUP("Total porcentaje:",$F:$H,3))),2) -> 16580.11 | S28: =ROUND(P28*R28,2) -> 215674070.9 | T28: =ROUND(S28*IF(VLOOKUP("UT Soft-IG"&$E$18&$C28,Consolidado!$A:$U,21,0)=1,19%,0),2) -> 0 | U28: =S28+T28 -> 215674070.9
A29: Microsoft®ProjectProfessional AllLng License/SoftwareAssurancePack MVL 1License w/1ProjectSvrCAL Additional Product No level N/A | B29: 2 | C29: H30-00237ANL | E29: Microsoft®ProjectProfessional AllLng License/SoftwareAssurancePack MVL 1License w/1ProjectSvrCAL Additional Product No level | I29: Producto | J29: Unidad | K29: N/A | L29: N/A | M29: N/A | N29: H30-00237 | O29: Suscripción Anual | P29: 60 | Q29: =VLOOKUP("UT Soft-IG"&$E$18&$C29,temp!$A:$Y,19,0)*$J$18 -> 194155.868 | R29: 201406.5 | S29: 12084390 | T29: =ROUND(S29*IF(VLOOKUP("UT Soft-IG"&$E$18&$C29,Consolidado!$A:$U,21,0)=1,19%,0),2) -> 2296034.1 | U29: 14380424.1
A30: Microsoft®SQLSvrEnterpriseCore AllLng License/SoftwareAssurancePack MVL 2Licenses CoreLic Additional Product No level N/A | B30: 3 | C30: 7JQ-00341 | E30: Microsoft®SQLSvrEnterpriseCore AllLng License/SoftwareAssurancePack MVL 2Licenses CoreLic Additional Product No level | I30: Producto | J30: Unidad | K30: N/A | L30: N/A | M30: N/A | N30: 7JQ-00341 | O30: Suscripción Anual | P30: 2 | Q30: =VLOOKUP("UT Soft-IG"&$E$18&$C30,temp!$A:$Y,19,0)*$J$18 -> 4293671.297 | R30: 4454015.87 | S30: 8908031.74 | T30: =ROUND(S30*IF(VLOOKUP("UT Soft-IG"&$E$18&$C30,Consolidado!$A:$U,21,0)=1,19%,0),2) -> 1692526.03 | U30: 10600557.77
A31: Microsoft®Visio®Professional AllLng License/SoftwareAssurancePack MVL 1License Additional Product No level N/A | B31: 4 | C31: D87-01057ANL | E31: Microsoft®Visio®Professional AllLng License/SoftwareAssurancePack MVL 1License Additional Product No level | I31: Producto | J31: Unidad | K31: N/A | L31: N/A | M31: N/A | N31: D87-01057 | O31: Suscripción Anual | P31: 60 | Q31: =VLOOKUP("UT Soft-IG"&$E$18&$C31,temp!$A:$Y,19,0)*$J$18 -> 176084.0808 | R31: 182659.83 | S31: 10959589.8 | T31: =ROUND(S31*IF(VLOOKUP("UT Soft-IG"&$E$18&$C31,Consolidado!$A:$U,21,0)=1,19%,0),2) -> 2082322.06 | U31: 13041911.86
A32: Microsoft®WinRmtDsktpSvcsCAL AllLng License/SoftwareAssurancePack MVL 1License DvcCAL Additional Product No level N/A | B32: 5 | C32: 6VC-01251ANL | E32: Microsoft®WinRmtDsktpSvcsCAL AllLng License/SoftwareAssurancePack MVL 1License DvcCAL Additional Product No level | I32: Producto | J32: Unidad | K32: N/A | L32: N/A | M32: N/A | N32: 6VC-01251 | O32: Suscripción Anual | P32: 300 | Q32: =VLOOKUP("UT Soft-IG"&$E$18&$C32,temp!$A:$Y,19,0)*$J$18 -> 28729.50792 | R32: 29802.39 | S32: 8940717 | T32: =ROUND(S32*IF(VLOOKUP("UT Soft-IG"&$E$18&$C32,Consolidado!$A:$U,21,0)=1,19%,0),2) -> 1698736.23 | U32: 10639453.23
A33: Microsoft®WindowsServerSTDCORE AllLng License/SoftwareAssurancePack MVL 2Licenses CoreLic Additional Product No level N/A | B33: 6 | C33: 9EM-00562 | E33: Microsoft®WindowsServerSTDCORE AllLng License/SoftwareAssurancePack MVL 2Licenses CoreLic Additional Product No level | I33: Producto | J33: Unidad | K33: N/A | L33: N/A | M33: N/A | N33: 9EM-00562 | O33: Suscripción Anual | P33: 200 | Q33: =VLOOKUP("UT Soft-IG"&$E$18&$C33,temp!$A:$Y,19,0)*$J$18 -> 20852.0622 | R33: 21630.77 | S33: 4326154 | T33: =ROUND(S33*IF(VLOOKUP("UT Soft-IG"&$E$18&$C33,Consolidado!$A:$U,21,0)=1,19%,0),2) -> 821969.26 | U33: 5148123.26
A34: Microsoft®Windows®ServerCAL AllLng License/SoftwareAssurancePack MVL 1License DvcCAL Faculty No level N/A | B34: 7 | C34: R18-00095 | E34: Microsoft®Windows®ServerCAL AllLng License/SoftwareAssurancePack MVL 1License DvcCAL Faculty No level | I34: Producto | J34: Unidad | K34: N/A | L34: N/A | M34: N/A | N34: R18-00095 | O34: Suscripción Anual | P34: 1084 | Q34: =VLOOKUP("UT Soft-IG"&$E$18&$C34,temp!$A:$Y,19,0)*$J$18 -> 8340.82488 | R34: 8652.31 | S34: 9379104.04 | T34: =ROUND(S34*IF(VLOOKUP("UT Soft-IG"&$E$18&$C34,Consolidado!$A:$U,21,0)=1,19%,0),2) -> 1782029.77 | U34: 11161133.81
B35: 1. Si requiere agregue o elimine fila | T35: Valor Total | U35: =ROUND(SUM($U$28:$U$34),2) -> 280645674.9
B38: Gravámenes adicionales* | S38: Servicios Azure
B39: Si los hay, indique los gravámenes adicionales a los que está sujeta la Orden de Compra. Son gravámenes adicionales por ejemplo; estampillas y demás impuestos territoriales. Los impuestos como ICA y retención en la fuente NO son gravámenes adicionales. | S39: Subtotal | T39: IVA | U39: Precio Total
B40: Gravámenes adicionales (estampillas) | S40: =SUMIF($O$28:$O$34,"Servicio Azure",$S$28:$S$34) -> 0 | T40: =SUMIF($O$28:$O$34,"Servicio Azure",$T$28:$T$34) -> 0 | U40: =S40+T40 -> 0
B41: No | C41: Descripción | H41: Porcentaje
B42: 1 | C42: Estampilla "Universidad Distrital Francisco José de Caldas"- 50 Años | H42: 0.011
B43: 2 | C43: Estampilla Pro Cultura | H43: 0.005
B44: 3 | C44: Estampilla Pro Adulto Mayor | H44: 0.02
F45: Total porcentaje: | H45: =SUM(H42:H44) -> 0.036
D46: Filas a agregar o eliminar Gravámenes:
D47: 1

Sheet Cotizacion
B1: Solicitud de Cotización Acuerdo Marco Microsoft 2G
B3: =SolCotizacion!B3 -> Versión: 46 | C3: =SolCotizacion!C3 -> 2019-06-10
B4: Información de la Entidad Compradora
B6: Nombre de la Entidad | E6: Universidad Distrital Francisco Jose de Caldas | K6: NIT | M6: 899999230-7
B8: Dirección de la Entidad | E8: Carrera 7 No. 40B - 53 | K8: Correo de contacto | M8: vicerrecadmin@udistrital.edu.co
B10: Municipio | E10: Bogota D.C. | K10: Teléfono de contacto | M10: 3239300 ext. 1804 - 1802
B12: Nombre funcionario Comprador | E12: Eduard Arnulfo Pinila Rivera
B16: Solicitud de Cotización
B18: Categoría | E18: Categoría 5 | I18: Valor TRM | J18: =SolCotizacion!J18 -> 3357.82 | M18: Fecha | N18: =SolCotizacion!N18 -> 14 DE JUNIO DE 2019
B20: Productos
A22: *Libros, revistas, cartillas y/o catálogo Segmento 1. | B22: =SolCotizacion!B22 -> Categoría 5 | C22: =SolCotizacion!C22 -> Campus (Educativo)
B24: Cantidad de filas:
B25: 1 | L25: Proveedor | N25: Controles Empresariales S.A.S.
B27: Item | C27: Código Catálogo | E27: Descripción del Producto | I27: Tipo | J27: Unidad | K27: Zona | L27: Asistencia | M27: Perfil | N27: Número de parte | O27: Forma de Pago | P27: cantidad | Q27: Precio Unitario | R27: Precio Unitario + Gravamen | S27: Descuento adicional | T27: Precio con Descuento | U27: Subtotal | V27: IVA | W27: Precio Total
A28: Microsoft® M365 EDU A3 Unified Shared ALNG MonthlySub MVL Per User for CoreCAL Faculty AN/A | B28: 1 | C28: AAD-38392A | E28: Microsoft® M365 EDU A3 Unified Shared ALNG MonthlySub MVL Per User for CoreCAL Faculty A | I28: Producto | J28: Unidad | K28: N/A | L28: N/A | M28: N/A | N28: AAD-38392 | O28: Suscripción Mensual con pago anual | P28: 13008 | Q28: =VLOOKUP($N$25&$E$18&$C28,temp!$A:$Y,19,0)*$J$18 -> 16990.5692 | R28: =ROUND(Q28/(1-(VLOOKUP("Total porcentaje:",$F:$H,3))),2) -> 17625.07 | S28: 0.2 | T28: =ROUND(R28*(1-S28),2) -> 14100.06 | U28: =ROUND(P28*T28,2) -> 183413580.5 | V28: =ROUND(U28*IF(VLOOKUP($N$25&$E$18&$C28,Consolidado!$A:$U,21,0)=1,19%,0),2) -> 0 | W28: =U28+V28 -> 183413580.5
A29: Microsoft®ProjectProfessional AllLng License/SoftwareAssurancePack MVL 1License w/1ProjectSvrCAL Additional Product No level N/A | B29: 2 | C29: H30-00237ANL | E29: Microsoft®ProjectProfessional AllLng License/SoftwareAssurancePack MVL 1License w/1ProjectSvrCAL Additional Product No level | I29: Producto | J29: Unidad | K29: N/A | L29: N/A | M29: N/A | N29: H30-00237 | O29: Suscripción Anual | P29: 60 | Q29: =VLOOKUP($N$25&$E$18&$C29,temp!$A:$Y,19,0)*$J$18 -> 208579.8776 | R29: 216369.17 | S29: 0.2 | T29: 173095.34 | U29: 10385720.4 | V29: =ROUND(U29*IF(VLOOKUP($N$25&$E$18&$C29,Consolidado!$A:$U,21,0)=1,19%,0),2) -> 1973286.88 | W29: 12359007.28
A30: Microsoft®SQLSvrEnterpriseCore AllLng License/SoftwareAssurancePack MVL 2Licenses CoreLic Additional Product No level N/A | B30: 3 | C30: 7JQ-00341 | E30: Microsoft®SQLSvrEnterpriseCore AllLng License/SoftwareAssurancePack MVL 2Licenses CoreLic Additional Product No level | I30: Producto | J30: Unidad | K30: N/A | L30: N/A | M30: N/A | N30: 7JQ-00341 | O30: Suscripción Anual | P30: 2 | Q30: =VLOOKUP($N$25&$E$18&$C30,temp!$A:$Y,19,0)*$J$18 -> 4392502.605 | R30: 4556537.97 | S30: 0.2 | T30: 3645230.38 | U30: 7290460.76 | V30: =ROUND(U30*IF(VLOOKUP($N$25&$E$18&$C30,Consolidado!$A:$U,21,0)=1,19%,0),2) -> 1385187.54 | W30: 8675648.3
A31: Microsoft®Visio®Professional AllLng License/SoftwareAssurancePack MVL 1License Additional Product No level N/A | B31: 4 | C31: D87-01057ANL | E31: Microsoft®Visio®Professional AllLng License/SoftwareAssurancePack MVL 1License Additional Product No level | I31: Producto | J31: Unidad | K31: N/A | L31: N/A | M31: N/A | N31: D87-01057 | O31: Suscripción Anual | P31: 60 | Q31: =VLOOKUP($N$25&$E$18&$C31,temp!$A:$Y,19,0)*$J$18 -> 180137.1671 | R31: 186864.28 | S31: 0.2 | T31: 149491.42 | U31: 8969485.2 | V31: =ROUND(U31*IF(VLOOKUP($N$25&$E$18&$C31,Consolidado!$A:$U,21,0)=1,19%,0),2) -> 1704202.19 | W31: 10673687.39
A32: Microsoft®WinRmtDsktpSvcsCAL AllLng License/SoftwareAssurancePack MVL 1License DvcCAL Additional Product No level N/A | B32: 5 | C32: 6VC-01251ANL | E32: Microsoft®WinRmtDsktpSvcsCAL AllLng License/SoftwareAssurancePack MVL 1License DvcCAL Additional Product No level | I32: Producto | J32: Unidad | K32: N/A | L32: N/A | M32: N/A | N32: 6VC-01251 | O32: Suscripción Anual | P32: 300 | Q32: =VLOOKUP($N$25&$E$18&$C32,temp!$A:$Y,19,0)*$J$18 -> 32235.072 | R32: 33438.87 | S32: 0.2 | T32: 26751.1 | U32: 8025330 | V32: =ROUND(U32*IF(VLOOKUP($N$25&$E$18&$C32,Consolidado!$A:$U,21,0)=1,19%,0),2) -> 1524812.7 | W32: 9550142.7
A33: Microsoft®WindowsServerSTDCORE AllLng License/SoftwareAssurancePack MVL 2Licenses CoreLic Additional Product No level N/A | B33: 6 | C33: 9EM-00562 | E33: Microsoft®WindowsServerSTDCORE AllLng License/SoftwareAssurancePack MVL 2Licenses CoreLic Additional Product No level | I33: Producto | J33: Unidad | K33: N/A | L33: N/A | M33: N/A | N33: 9EM-00562 | O33: Suscripción Anual | P33: 200 | Q33: =VLOOKUP($N$25&$E$18&$C33,temp!$A:$Y,19,0)*$J$18 -> 21332.03294 | R33: 22128.66 | S33: 0.2 | T33: 17702.93 | U33: 3540586 | V33: =ROUND(U33*IF(VLOOKUP($N$25&$E$18&$C33,Consolidado!$A:$U,21,0)=1,19%,0),2) -> 672711.34 | W33: 4213297.34
A34: Microsoft®Windows®ServerCAL AllLng License/SoftwareAssurancePack MVL 1License DvcCAL Faculty No level N/A | B34: 7 | C34: R18-00095 | E34: Microsoft®Windows®ServerCAL AllLng License/SoftwareAssurancePack MVL 1License DvcCAL Faculty No level | I34: Producto | J34: Unidad | K34: N/A | L34: N/A | M34: N/A | N34: R18-00095 | O34: Suscripción Anual | P34: 1084 | Q34: =VLOOKUP($N$25&$E$18&$C34,temp!$A:$Y,19,0)*$J$18 -> 9006.858353 | R34: 9343.21 | S34: 0.2 | T34: 7474.57 | U34: 8102433.88 | V34: =ROUND(U34*IF(VLOOKUP($N$25&$E$18&$C34,Consolidado!$A:$U,21,0)=1,19%,0),2) -> 1539462.44 | W34: 9641896.32
B35: 1. Si requiere agregue o elimine fila | V35: Valor Total | W35: =ROUND(SUM($W$28:$W$34),2) -> 238527259.8
B38: Gravámenes adicionales* | U38: Servicios Azure
B39: Si los hay, indique los gravámenes adicionales a los que está sujeta la Orden de Compra. Son gravámenes adicionales por ejemplo; estampillas y demás impuestos territoriales. Los impuestos como ICA y retención en la fuente NO son gravámenes adicionales. | U39: Subtotal | V39: IVA | W39: Precio Total
B40: Gravámenes adicionales (estampillas) | U40: =SUMIF($O$28:$O$34,"Servicio Azure",$U$28:$U$34) -> 0 | V40: =SUMIF($O$28:$O$34,"Servicio Azure",$V$28:$V$34) -> 0 | W40: =U40+V40 -> 0
B41: No | C41: Descripción | H41: Porcentaje
B42: 1 | C42: Estampilla "Universidad Distrital Francisco José de Caldas"- 50 Años | H42: 0.011
B43: 2 | C43: Estampilla Pro Cultura | H43: 0.005
B44: 3 | C44: Estampilla Pro Adulto Mayor | H44: 0.02
F45: Total porcentaje: | H45: =SUM(H42:H44) -> 0.036
D46: Filas a agregar o eliminar Gravámenes:
D47: 1

Sheet CSV (hidden)
A1: Tipo (servicio o artÃ­culo) | B1: Cantidad | C1: CÃ³digo de unidad de medida* | D1: PosiciÃ³n | E1: Precio base | F1: Divisa | G1: DescripciÃ³n | H1: MercancÃ­a
A2: item | B2: 13008 | C2: Und | E2: "16580,11" | F2: COP | G2: msf02--AAD-38392A Microsoft® M365 EDU A3 Unified Shared ALNG MonthlySub MVL Per User for CoreCAL Faculty A
A3: item | B3: 60 | C3: Und | E3: "201406,5" | F3: COP | G3: msf02--H30-00237ANL Microsoft®ProjectProfessional AllLng License/SoftwareAssurancePack MVL 1License w/1ProjectSvrCAL Additional Product No level
A4: item | B4: 2 | C4: Und | E4: "4454015,87" | F4: COP | G4: msf02--7JQ-00341 Microsoft®SQLSvrEnterpriseCore AllLng License/SoftwareAssurancePack MVL 2Licenses CoreLic Additional Product No level
A5: item | B5: 60 | C5: Und | E5: "182659,83" | F5: COP | G5: msf02--D87-01057ANL Microsoft®Visio®Professional AllLng License/SoftwareAssurancePack MVL 1License Additional Product No level
A6: item | B6: 300 | C6: Und | E6: "29802,39" | F6: COP | G6: msf02--6VC-01251ANL Microsoft®WinRmtDsktpSvcsCAL AllLng License/SoftwareAssurancePack MVL 1License DvcCAL Additional Product No level
A7: item | B7: 200 | C7: Und | E7: "21630,77" | F7: COP | G7: msf02--9EM-00562 Microsoft®WindowsServerSTDCORE AllLng License/SoftwareAssurancePack MVL 2Licenses CoreLic Additional Product No level
A8: item | B8: 1084 | C8: Und | E8: "8652,31" | F8: COP | G8: msf02--R18-00095 Microsoft®Windows®ServerCAL AllLng License/SoftwareAssurancePack MVL 1License DvcCAL Faculty No level
A9: item | B9: 1 | C9: Und | E9: "10373617,45" | F9: COP | G9: msf02--IVA

Sheet Categorias (hidden)
A1: Categoría 1 | B1: Sistema Operativo, Plataforma, Nube e Infraestructura y Desarrollo Aplicaciones (Open – CSP)
A2: Categoría 2 | B2: Productividad Administración y análisis de datos (Open - CSP)
A3: Categoría 3 | B3: Movilidad (Open - CSP)
A4: Categoría 4 | B4: Aplicaciones empresariales (Open - CSP)
A5: Categoría 5 | B5: Campus (Educativo)
A6: Categoría 6 | B6: OVS (Educativo)
A7: Categoría 7 | B7: Open - CSP (Educativo)

Sheet Consolidado (hidden)
A1: LLAVE | B1: TEMP1 | C1: TEMP2 | D1: PROVEEDOR | E1: Código matriz Colombia Compra Eficiente | F1: categoria | G1: Familia | H1: Familia CCE | I1: Parametrización de los Servicios | J1: Nombre Producto | K1: Unidad de Medida | L1: Unidad TVEC | M1: Tipo | N1: Zona | O1: Asistencia | P1: Perfil | Q1: Número de parte | R1: Forma de Pago | S1: Precio | T1: Activo | U1: IVA
A2: =D2&"Categoría "&F2&E2 -> Controles Empresariales S.A.S.Categoría 1db5e0b1c-9cc3-459c-9d08-c61993959fd3P8435 | B2: =E2&"Categoría "&F2 -> db5e0b1c-9cc3-459c-9d08-c61993959fd3P8435Categoría 1 | D2: Controles Empresariales S.A.S. | E2: db5e0b1c-9cc3-459c-9d08-c61993959fd3P8435 | F2: 1 | G2: Office 365 | H2: Office 365 | I2: N/A | J2: Microsoft 365 E5 without Audio Conferencing | K2: Unidad | L2: Und | M2: Producto | N2: N/A | O2: N/A | P2: N/A | Q2: db5e0b1c-9cc3-459c-9d08-c61993959fd3 | R2: Suscripción Mensual | S2: 0 | T2: 1 | U2: 0
A3: =D3&"Categoría "&F3&E3 -> Controles Empresariales S.A.S.Categoría 18bdbb60b-e526-43e9-92ef-ab760c8e0b72P8434 | B3: =E3&"Categoría "&F3 -> 8bdbb60b-e526-43e9-92ef-ab760c8e0b72P8434Categoría 1 | D3: Controles Empresariales S.A.S. | E3: 8bdbb60b-e526-43e9-92ef-ab760c8e0b72P8434 | F3: 1 | G3: Office 365 | H3: Office 365 | I3: N/A | J3: Microsoft 365 E5 | K3: Unidad | L3: Und | M3: Producto | N3: N/A | O3: N/A | P3: N/A | Q3: 8bdbb60b-e526-43e9-92ef-ab760c8e0b72 | R3: Suscripción Mensual | S3: 57.831 | T3: 1 | U3: 0
A4: Controles Empresariales S.A.S.Categoría 12b3b8d2d-10aa-4be4-b5fd-7f2feb0c3091P8433 | B4: 2b3b8d2d-10aa-4be4-b5fd-7f2feb0c3091P8433Categoría 1 | D4: Controles Empresariales S.A.S. | E4: 2b3b8d2d-10aa-4be4-b5fd-7f2feb0c3091P8433 | F4: 1 | G4: Office 365 | H4: Office 365 | I4: N/A | J4: Microsoft 365 E3 | K4: Unidad | L4: Und | M4: Producto | N4: N/A | O4: N/A | P4: N/A | Q4: 2b3b8d2d-10aa-4be4-b5fd-7f2feb0c3091 | R4: Suscripción Mensual | S4: 32.132793 | T4: 1 | U4: 0
A5: Controles Empresariales S.A.S.Categoría 1021-07160P8327 | B5: 021-07160P8327Categoría 1 | D5: Controles Empresariales S.A.S. | E5: 021-07160P8327 | F5: 1 | G5: Office Standard | H5: Office Standard | I5: N/A | J5: Microsoft®Office License/SoftwareAssurancePack Government OLP 1License NoLevel | K5: Unidad | L5: Und | M5: Producto | N5: N/A | O5: N/A | P5: N/A | Q5: 021-07160 | R5: Licencia | S5: 532.3976293 | T5: 1 | U5: 1
A6: Controles Empresariales S.A.S.Categoría 1021-07161P8328 | B6: 021-07161P8328Categoría 1 | D6: Controles Empresariales S.A.S. | E6: 021-07161P8328 | F6: 1 | G6: Office Standard | H6: Office Standard | I6: N/A | J6: Microsoft®Office SoftwareAssurance Government OLP 1License NoLevel | K6: Unidad | L6: Und | M6: Producto | N6: N/A | O6: N/A | P6: N/A | Q6: 021-07161 | R6: Licencia | S6: 195.4151816 | T6: 1 | U6: 1
A7: Controles Empresariales S.A.S.Categoría 1ea1938b1-6307-4749-ac97-37df8ab660ef | B7: ea1938b1-6307-4749-ac97-37df8ab660efCategoría 1 | D7: Controles Empresariales S.A.S. | E7: ea1938b1-6307-4749-ac97-37df8ab660ef | F7: 1 | G7: Power BI | H7: Power BI | I7: N/A | J7: Power BI Premium P5 | K7: Unidad | L7: Und | M7: Producto | N7: N/A | O7: N/A | P7: N/A | Q7: ea1938b1-6307-4749-ac97-37df8ab660ef | R7: Suscripción Mensual | S7: 79995 | T7: 1 | U7: 0
A8: Controles Empresariales S.A.S.Categoría 1c506d0f3-83c5-4939-971a-1270a48480e9 | B8: c506d0f3-83c5-4939-971a-1270a48480e9Categoría 1 | D8: Controles Empresariales S.A.S. | E8: c506d0f3-83c5-4939-971a-1270a48480e9 | F8: 1 | G8: Dynamics | H8: Dynamics | I8: N/A | J8: Dynamics 365 for Marketing Attach | K8: Unidad | L8: Und | M8: Producto | N8: N/A | O8: N/A | P8: N/A | Q8: c506d0f3-83c5-4939-971a-1270a48480e9 | R8: Suscripción Mensual | S8: 716.9117647 | T8: 1 | U8: 0
A9: Controles Empresariales S.A.S.Categoría 1076-03299P8375 | B9: 076-03299P8375Categoría 1 | D9: Controles Empresariales S.A.S. | E9: 076-03299P8375 | F9: 1 | G9: Project Standard | H9: Project Standard | I9: N/A | J9: Microsoft®ProjectStandard License/SoftwareAssurancePack Government OLP 1License NoLevel | K9: Unidad | L9: Und | M9: Producto | N9: N/A | O9: N/A | P9: N/A | Q9: 076-03299 | R9: Licencia | S9: 805.9415184 | T9: 1 | U9: 1
A10: Controles Empresariales S.A.S.Categoría 1076-03300P8376 | B10: 076-03300P8376Categoría 1 | D10: Controles Empresariales S.A.S. | E10: 076-03300P8376 | F10: 1 | G10: Project Standard | H10: Project Standard | I10: N/A | J10: Microsoft®ProjectStandard SoftwareAssurance Government OLP 1License NoLevel | K10: Unidad | L10: Und | M10: Producto | N10: N/A | O10: N/A | P10: N/A | Q10: 076-03300 | R10: Licencia | S10: 295.812815 | T10: 1 | U10: 1
A11: Controles Empresariales S.A.S.Categoría 1077-03412P2 | B11: 077-03412P2Categoría 1 | D11: Controles Empresariales S.A.S. | E11: 077-03412P2 | F11: 1 | G11: Access | H11: Access | I11: N/A | J11: Microsoft®Access License/SoftwareAssurancePack Government OLP 1License NoLevel | K11: Unidad | L11: Und | M11: Producto | N11: N/A | O11: N/A | P11: N/A | Q11: 077-03412 | R11: Licencia | S11: 206.6006264 | T11: 1 | U11: 1
A12: Controles Empresariales S.A.S.Categoría 1077-03413P3 | B12: 077-03413P3Categoría 1 | D12: Controles Empresariales S.A.S. | E12: 077-03413P3 | F12: 1 | G12: Access | H12: Access | I12: N/A | J12: Microsoft®Access SoftwareAssurance Government OLP 1License NoLevel | K12: Unidad | L12: Und | M12: Producto | N12: N/A | O12: N/A | P12: N/A | Q12: 077-03413 | R12: Licencia | S12: 75.72060124 | T12: 1 | U12: 1
A13: Controles Empresariales S.A.S.Categoría 1d55a6d58-8bd0-4732-bda4-b03b4786eaf4 | B13: d55a6d58-8bd0-4732-bda4-b03b4786eaf4Categoría 1 | D13: Controles Empresariales S.A.S. | E13: d55a6d58-8bd0-4732-bda4-b03b4786eaf4 | F13: 1 | G13: Dynamics | H13: Dynamics | I13: N/A | J13: Dynamics 365 Unified Operations Plan From SA From AX/DPLUser (Qualified Offer) | K13: Unidad | L13: Und | M13: Producto | N13: N/A | O13: N/A | P13: N/A | Q13: d55a6d58-8bd0-4732-bda4-b03b4786eaf4 | R13: Suscripción Mensual con pago anual | S13: 103.9411765 | T13: 1 | U13: 0
A14: Controles Empresariales S.A.S.Categoría 1a044b16a-1861-4308-8086-a3a3b506fac2P8319 | B14: a044b16a-1861-4308-8086-a3a3b506fac2P8319Categoría 1 | D14: Controles Empresariales S.A.S. | E14: a044b16a-1861-4308-8086-a3a3b506fac2P8319 | F14: 1 | G14: Office 365 | H14: Office 365 | I14: N/A | J14: Office 365 E5 | K14: Unidad | L14: Und | M14: Producto | N14: N/A | O14: N/A | P14: N/A | Q14: a044b16a-1861-4308-8086-a3a3b506fac2 | R14: Suscripción Mensual | S14: 33.044154 | T14: 1 | U14: 0
A15: Controles Empresariales S.A.S.Categoría 1125-00162P8875 | B15: 125-00162P8875Categoría 1 | D15: Controles Empresariales S.A.S. | E15: 125-00162P8875 | F15: 1 | G15: Azure DevOps Server | H15: Azure DevOps Server | I15: N/A | J15: Microsoft®AzureDevOpsServer License/SoftwareAssurancePack Government OLP 1License NoLevel | K15: Unidad | L15: Und | M15: Producto | N15: N/A | O15: N/A | P15: N/A | Q15: 125-00162 | R15: Licencia | S15: 525.6139826 | T15: 1 | U15: 1
A16: Controles Empresariales S.A.S.Categoría 1125-00181P8876 | B16: 125-00181P8876Categoría 1 | D16: Controles Empresariales S.A.S. | E16: 125-00181P8876 | F16: 1 | G16: Azure DevOps Server | H16: Azure DevOps Server | I16: N/A | J16: Microsoft®AzureDevOpsServer SoftwareAssurance Government OLP 1License NoLevel | K16: Unidad | L16: Und | M16: Producto | N16: N/A | O16: N/A | P16: N/A | Q16: 125-00181 | R16: Licencia | S16: 175.2046615 | T16: 1 | U16: 1
A17: Controles Empresariales S.A.S.Categoría 1126-00257P8868 | B17: 126-00257P8868Categoría 1 | D17: Controles Empresariales S.A.S. | E17: 126-00257P8868 | F17: 1 | G17: Azure DevOps Server CAL | H17: Azure DevOps Server CAL | I17: N/A | J17: Microsoft®AzureDevOpsServerCAL License/SoftwareAssurancePack Government OLP 1License NoLevel DvcCAL | K17: Unidad | L17: Und | M17: Producto | N17: N/A | O17: N/A | P17: N/A | Q17: 126-00257 | R17: Licencia | S17: 525.6139826 | T17: 1 | U17: 1
A18: Controles Empresariales S.A.S.Categoría 1126-00260P8869 | B18: 126-00260P8869Categoría 1 | D18: Controles Empresariales S.A.S. | E18: 126-00260P8869 | F18: 1 | G18: Azure DevOps Server CAL | H18: Azure DevOps Server CAL | I18: N/A | J18: Microsoft®AzureDevOpsServerCAL License/SoftwareAssurancePack Government OLP 1License NoLevel UsrCAL | K18: Unidad | L18: Und | M18: Producto | N18: N/A | O18: N/A | P18: N/A | Q18: 126-00260 | R18: Licencia | S18: 604.5262486 | T18: 1 | U18: 1
A19: Controles Empresariales S.A.S.Categoría 1126-00295P8870 | B19: 126-00295P8870Categoría 1 | D19: Controles Empresariales S.A.S. | E19: 126-00295P8870 | F19: 1 | G19: Azure DevOps Server CAL | H19: Azure DevOps Server CAL | I19: N/A | J19: Microsoft®AzureDevOpsServerCAL SoftwareAssurance Government OLP 1License NoLevel DvcCAL | K19: Unidad | L19: Und | M19: Producto | N19: N/A | O19: N/A | P19: N/A | Q19: 126-00295 | R19: Licencia | S19: 175.2046615 | T19: 1 | U19: 1
A20: Controles Empresariales S.A.S.Categoría 1126-00298P8871 | B20: 126-00298P8871Categoría 1 | D20: Controles Empresariales S.A.S. | E20: 126-00298P8871 | F20: 1 | G20: Azure DevOps Server CAL | H20: Azure DevOps Server CAL | I20: N/A | J20: Microsoft®AzureDevOpsServerCAL SoftwareAssurance Government OLP 1License NoLevel UsrCAL | K20: Unidad | L20: Und | M20: Producto | N20: N/A | O20: N/A | P20: N/A | Q20: 126-00298 | R20: Licencia | S20: 201.508709 | T20: 1 | U20: 1
A21: Controles Empresariales S.A.S.Categoría 1771c2453-e28a-47ff-ad72-5e32696f2435 | B21: 771c2453-e28a-47ff-ad72-5e32696f2435Categoría 1 | D21: Controles Empresariales S.A.S. | E21: 771c2453-e28a-47ff-ad72-5e32696f2435 | F21: 1 | G21: Power BI | H21: Power BI | I21: N/A | J21: Power BI Premium P4 | K21: Unidad | L21: Und | M21: Producto | N21: N/A | O21: N/A | P21: N/A | Q21: 771c2453-e28a-47ff-ad72-5e32696f2435 | R21: Suscripción Mensual | S21: 39995 | T21: 1 | U21: 0
A22: Controles Empresariales S.A.S.Categoría 1228-04510P8639 | B22: 228-04510P8639Categoría 1 | D22: Controles Empresariales S.A.S. | E22: 228-04510P8639 | F22: 1 | G22: SQL Server Standard Edition | H22: SQL Server Standard Edition | I22: N/A | J22: Microsoft®SQLServerStandardEdition SoftwareAssurance Government OLP 1License NoLevel | K22: Unidad | L22: Und | M22: Producto | N22: N/A | O22: N/A | P22: N/A | Q22: 228-04510 | R22: Licencia | S22: 406.2923766 | T22: 1 | U22: 1
A23: Controles Empresariales S.A.S.Categoría 1228-04513P8638 | B23: 228-04513P8638Categoría 1 | D23: Controles Empresariales S.A.S. | E23: 228-04513P8638 | F23: 1 | G23: SQL Server Standard Edition | H23: SQL Server Standard Edition | I23: N/A | J23: Microsoft®SQLServerStandardEdition License/SoftwareAssurancePack Government OLP 1License NoLevel | K23: Unidad | L23: Und | M23: Producto | N23: N/A | O23: N/A | P23: N/A | Q23: 228-04513 | R23: Licencia | S23: 1218.994087 | T23: 1 | U23: 1
A24: Controles Empresariales S.A.S.Categoría 1228-11151 | B24: 228-11151Categoría 1 | D24: Controles Empresariales S.A.S. | E24: 228-11151 | F24: 1 | G24: SQL Server Standard Edition | H24: SQL Server Standard Edition | I24: NA | J24: Microsoft®SQLServerStandardEdition 2017 Government OLP 1License NoLevel | K24: Unidad | L24: Und | M24: Producto | N24: N/A | O24: N/A | P24: N/A | Q24: 228-11151 | R24: Licencia | S24: 860.5201238 | T24: 1 | U24: 1
A25: Controles Empresariales S.A.S.Categoría 1269-08812P8342 | B25: 269-08812P8342Categoría 1 | D25: Controles Empresariales S.A.S. | E25: 269-08812P8342 | F25: 1 | G25: Office Professional Plus | H25: Office Professional Plus | I25: N/A | J25: Microsoft®OfficeProfessionalPlus License/SoftwareAssurancePack Government OLP 1License NoLevel | K25: Unidad | L25: Und | M25: Producto | N25: N/A | O25: N/A | P25: N/A | Q25: 269-08812 | R25: Licencia | S25: 726.2806534 | T25: 1 | U25: 1
A26: Controles Empresariales S.A.S.Categoría 1269-08814P8343 | B26: 269-08814P8343Categoría 1 | D26: Controles Empresariales S.A.S. | E26: 269-08814P8343 | F26: 1 | G26: Office Professional Plus | H26: Office Professional Plus | I26: N/A | J26: Microsoft®OfficeProfessionalPlus SoftwareAssurance Government OLP 1License NoLevel | K26: Unidad | L26: Und | M26: Producto | N26: N/A | O26: N/A | P26: N/A | Q26: 269-08814 | R26: Licencia | S26: 266.596382 | T26: 1 | U26: 1
A27: Controles Empresariales S.A.S.Categoría 1f28514f0-6516-4ef9-8222-1c605a05d245 | B27: f28514f0-6516-4ef9-8222-1c605a05d245Categoría 1 | D27: Controles Empresariales S.A.S. | E27: f28514f0-6516-4ef9-8222-1c605a05d245 | F27: 1 | G27: Dynamics | H27: Dynamics | I27: N/A | J27: Dynamics 365 for Sales Professional | K27: Unidad | L27: Und | M27: Producto | N27: N/A | O27: N/A | P27: N/A | Q27: f28514f0-6516-4ef9-8222-1c605a05d245 | R27: Suscripción Mensual | S27: 62.13235294 | T27: 1 | U27: 0
A28: Controles Empresariales S.A.S.Categoría 129a03361-6ac6-4165-9b7f-c714e7ed6258 | B28: 29a03361-6ac6-4165-9b7f-c714e7ed6258Categoría 1 | D28: Controles Empresariales S.A.S. | E28: 29a03361-6ac6-4165-9b7f-c714e7ed6258 | F28: 1 | G28: Dynamics | H28: Dynamics | I28: N/A | J28: Dynamics 365 for Marketing | K28: Unidad | L28: Und | M28: Producto | N28: N/A | O28: N/A | P28: N/A | Q28: 29a03361-6ac6-4165-9b7f-c714e7ed6258 | R28: Suscripción Mensual | S28: 1433.823529 | T28: 1 | U28: 0
A29: Controles Empresariales S.A.S.Categoría 1312-02971P8129 | B29: 312-02971P8129Categoría 1 | D29: Controles Empresariales S.A.S. | E29: 312-02971P8129 | F29: 1 | G29: Exchange Server - Standard | H29: Exchange Server - Standard | I29: N/A | J29: Microsoft®ExchangeServerStandard SoftwareAssurance Government OLP 1License NoLevel | K29: Unidad | L29: Und | M29: Producto | N29: N/A | O29: N/A | P29: N/A | Q29: 312-02971 | R29: Licencia | S29: 320.3975767 | T29: 1 | U29: 1
A30: Controles Empresariales S.A.S.Categoría 1312-02972P8128 | B30: 312-02972P8128Categoría 1 | D30: Controles Empresariales S.A.S. | E30: 312-02972P8128 | F30: 1 | G30: Exchange Server - Standard | H30: Exchange Server - Standard | I30: N/A | J30: Microsoft®ExchangeServerStandard License/SoftwareAssurancePack Government OLP 1License NoLevel | K30: Unidad | L30: Und | M30: Producto | N30: N/A | O30: N/A | P30: N/A | Q30: 312-02972 | R30: Licencia | S30: 961.426827 | T30: 1 | U30: 1
A31: Controles Empresariales S.A.S.Categoría 1359-01384P8626 | B31: 359-01384P8626Categoría 1 | D31: Controles Empresariales S.A.S. | E31: 359-01384P8626 | F31: 1 | G31: SQL CAL | H31: SQL CAL | I31: N/A | J31: Microsoft®SQLCAL SoftwareAssurance Government OLP 1License NoLevel UsrCAL | K31: Unidad | L31: Und | M31: Producto | N31: N/A | O31: N/A | P31: N/A | Q31: 359-01384 | R31: Licencia | S31: 94.36246186 | T31: 1 | U31: 1
A32: Controles Empresariales S.A.S.Categoría 1359-01385P8625 | B32: 359-01385P8625Categoría 1 | D32: Controles Empresariales S.A.S. | E32: 359-01385P8625 | F32: 1 | G32: SQL CAL | H32: SQL CAL | I32: N/A | J32: Microsoft®SQLCAL SoftwareAssurance Government OLP 1License NoLevel DvcCAL | K32: Unidad | L32: Und | M32: Producto | N32: N/A | O32: N/A | P32: N/A | Q32: 359-01385 | R32: Licencia | S32: 94.36246186 | T32: 1 | U32: 1
A33: Controles Empresariales S.A.S.Categoría 1359-01386P8624 | B33: 359-01386P8624Categoría 1 | D33: Controles Empresariales S.A.S. | E33: 359-01386P8624 | F33: 1 | G33: SQL CAL | H33: SQL CAL | I33: N/A | J33: Microsoft®SQLCAL License/SoftwareAssurancePack Government OLP 1License NoLevel UsrCAL | K33: Unidad | L33: Und | M33: Producto | N33: N/A | O33: N/A | P33: N/A | Q33: 359-01386 | R33: Licencia | S33: 283.0876249 | T33: 1 | U33: 1
A34: Controles Empresariales S.A.S.Categoría 1359-01387P8623 | B34: 359-01387P8623Categoría 1 | D34: Controles Empresariales S.A.S. | E34: 359-01387P8623 | F34: 1 | G34: SQL CAL | H34: SQL CAL | I34: N/A | J34: Microsoft®SQLCAL License/SoftwareAssurancePack Government OLP 1License NoLevel DvcCAL | K34: Unidad | L34: Und | M34: Producto | N34: N/A | O34: N/A | P34: N/A | Q34: 359-01387 | R34: Licencia | S34: 283.0876249 | T34: 1 | U34: 1
A35: Controles Empresariales S.A.S.Categoría 1359-06588 | B35: 359-06588Categoría 1 | D35: Controles Empresariales S.A.S. | E35: 359-06588 | F35: 1 | G35: SQL CAL | H35: SQL CAL | I35: NA | J35: Microsoft®SQLCAL 2017 Government OLP 1License NoLevel DvcCAL | K35: Unidad | L35: Und | M35: Producto | N35: N/A | O35: N/A | P35: N/A | Q35: 359-06588 | R35: Licencia | S35: 199.8266254 | T35: 1 | U35: 1
A36: Controles Empresariales S.A.S.Categoría 1359-06589 | B36: 359-06589Categoría 1 | D36: Controles Empresariales S.A.S. | E36: 359-06589 | F36: 1 | G36: SQL CAL | H36: SQL CAL | I36: NA | J36: Microsoft®SQLCAL 2017 Government OLP 1License NoLevel UsrCAL | K36: Unidad | L36: Und | M36: Producto | N36: N/A | O36: N/A | P36: N/A | Q36: 359-06589 | R36: Licencia | S36: 199.8266254 | T36: 1 | U36: 1
A37: Controles Empresariales S.A.S.Categoría 1381-02587P8147 | B37: 381-02587P8147Categoría 1 | D37: Controles Empresariales S.A.S. | E37: 381-02587P8147 | F37: 1 | G37: Exchange Standard CAL | H37: Exchange Standard CAL | I37: N/A | J37: Microsoft®ExchangeStandardCAL SoftwareAssurance Government OLP 1License NoLevel UsrCAL | K37: Unidad | L37: Und | M37: Producto | N37: N/A | O37: N/A | P37: N/A | Q37: 381-02587 | R37: Licencia | S37: 39.26314958 | T37: 1 | U37: 1
A38: Controles Empresariales S.A.S.Categoría 1381-02588P8146 | B38: 381-02588P8146Categoría 1 | D38: Controles Empresariales S.A.S. | E38: 381-02588P8146 | F38: 1 | G38: Exchange Standard CAL | H38: Exchange Standard CAL | I38: N/A | J38: Microsoft®ExchangeStandardCAL SoftwareAssurance Government OLP 1License NoLevel DvcCAL | K38: Unidad | L38: Und | M38: Producto | N38: N/A | O38: N/A | P38: N/A | Q38: 381-02588 | R38: Licencia | S38: 30.3625022 | T38: 1 | U38: 1
A39: Controles Empresariales S.A.S.Categoría 1381-02590P8144 | B39: 381-02590P8144Categoría 1 | D39: Controles Empresariales S.A.S. | E39: 381-02590P8144 | F39: 1 | G39: Exchange Standard CAL | H39: Exchange Standard CAL | I39: N/A | J39: Microsoft®ExchangeStandardCAL License/SoftwareAssurancePack Government OLP 1License NoLevel DvcCAL | K39: Unidad | L39: Und | M39: Producto | N39: N/A | O39: N/A | P39: N/A | Q39: 381-02590 | R39: Licencia | S39: 90.97072685 | T39: 1 | U39: 1
A40: Controles Empresariales S.A.S.Categoría 1381-02592P8145 | B40: 381-02592P8145Categoría 1 | D40: Controles Empresariales S.A.S. | E40: 381-02592P8145 | F40: 1 | G40: Exchange Standard CAL | H40: Exchange Standard CAL | I40: N/A | J40: Microsoft®ExchangeStandardCAL License/SoftwareAssurancePack Government OLP 1License NoLevel UsrCAL | K40: Unidad | L40: Und | M40: Producto | N40: N/A | O40: N/A | P40: N/A | Q40: 381-02592 | R40: Licencia | S40: 117.6841856 | T40: 1 | U40: 1
A41: Controles Empresariales S.A.S.Categoría 1395-03180P8119 | B41: 395-03180P8119Categoría 1 | D41: Controles Empresariales S.A.S. | E41: 395-03180P8119 | F41: 1 | G41: Exchange Server - Enterprise | H41: Exchange Server - Enterprise | I41: N/A | J41: Microsoft®ExchangeServerEnterprise License/SoftwareAssurancePack Government OLP 1License NoLevel | K41: Unidad | L41: Und | M41: Producto | N41: N/A | O41: N/A | P41: N/A | Q41: 395-03180 | R41: Licencia | S41: 5507.251414 | T41: 1 | U41: 1
A42: Controles Empresariales S.A.S.Categoría 1395-03181P8120 | B42: 395-03181P8120Categoría 1 | D42: Controles Empresariales S.A.S. | E42: 395-03181P8120 | F42: 1 | G42: Exchange Server - Enterprise | H42: Exchange Server - Enterprise | I42: N/A | J42: Microsoft®ExchangeServerEnterprise SoftwareAssurance Government OLP 1License NoLevel | K42: Unidad | L42: Und | M42: Producto | N42: N/A | O42: N/A | P42: N/A | Q42: 395-03181 | R42: Licencia | S42: 1835.824486 | T42: 1 | U42: 1
A43: Controles Empresariales S.A.S.Categoría 13LN-00010P8186 | B43: 3LN-00010P8186Categoría 1 | D43: Controles Empresariales S.A.S. | E43: 3LN-00010P8186 | F43: 1 | G43: Intune Open | H43: Intune Open | I43: N/A | J43: Microsoft®IntuneOpen ShrdSvr MonthlySubscriptions-VolumeLicense Government OLP 1License NoLevel Qualified Annual | K43: Unidad | L43: Und | M43: Producto | N43: N/A | O43: N/A | P43: N/A | Q43: 3LN-00010 | R43: Suscripción Anual | S43: 71.57889755 | T43: 1 | U43: 0
A44: Controles Empresariales S.A.S.Categoría 13ND-00436P8812 | B44: 3ND-00436P8812Categoría 1 | D44: Controles Empresariales S.A.S. | E44: 3ND-00436P8812 | F44: 1 | G44: Sys Ctr Service Mgr Clt Mgmt Lic | H44: Sys Ctr Service Mgr Clt Mgmt Lic | I44: N/A | J44: Microsoft®SysCtrServiceMgrCltMgmtLic License/SoftwareAssurancePack Government OLP 1License NoLevel PerOSE | K44: Unidad | L44: Und | M44: Producto | N44: N/A | O44: N/A | P44: N/A | Q44: 3ND-00436 | R44: Licencia | S44: 24.54961209 | T44: 1 | U44: 1
A45: Controles Empresariales S.A.S.Categoría 13ND-00437P8813 | B45: 3ND-00437P8813Categoría 1 | D45: Controles Empresariales S.A.S. | E45: 3ND-00437P8813 | F45: 1 | G45: Sys Ctr Service Mgr Clt Mgmt Lic | H45: Sys Ctr Service Mgr Clt Mgmt Lic | I45: N/A | J45: Microsoft®SysCtrServiceMgrCltMgmtLic License/SoftwareAssurancePack Government OLP 1License NoLevel PerUsr | K45: Unidad | L45: Und | M45: Producto | N45: N/A | O45: N/A | P45: N/A | Q45: 3ND-00437 | R45: Licencia | S45: 31.94143577 | T45: 1 | U45: 1
A46: Controles Empresariales S.A.S.Categoría 13ND-00438P8814 | B46: 3ND-00438P8814Categoría 1 | D46: Controles Empresariales S.A.S. | E46: 3ND-00438P8814 | F46: 1 | G46: Sys Ctr Service Mgr Clt Mgmt Lic | H46: Sys Ctr Service Mgr Clt Mgmt Lic | I46: N/A | J46: Microsoft®SysCtrServiceMgrCltMgmtLic SoftwareAssurance Government OLP 1License NoLevel PerOSE | K46: Unidad | L46: Und | M46: Producto | N46: N/A | O46: N/A | P46: N/A | Q46: 3ND-00438 | R46: Licencia | S46: 8.1403 | T46: 1 | U46: 1
A47: Controles Empresariales S.A.S.Categoría 13ND-00439P8815 | B47: 3ND-00439P8815Categoría 1 | D47: Controles Empresariales S.A.S. | E47: 3ND-00439P8815 | F47: 1 | G47: Sys Ctr Service Mgr Clt Mgmt Lic | H47: Sys Ctr Service Mgr Clt Mgmt Lic | I47: N/A | J47: Microsoft®SysCtrServiceMgrCltMgmtLic SoftwareAssurance Government OLP 1License NoLevel PerUsr | K47: Unidad | L47: Und | M47: Producto | N47: N/A | O47: N/A | P47: N/A | Q47: 3ND-00439 | R47: Licencia | S47: 10.60812083 | T47: 1 | U47: 1
A48: Controles Empresariales S.A.S.Categoría 13NN-00024P8361 | B48: 3NN-00024P8361Categoría 1 | D48: Controles Empresariales S.A.S. | E48: 3NN-00024P8361 | F48: 1 | G48: OneDrive for Business Plan 1 Open | H48: OneDrive for Business Plan 1 Open | I48: N/A | J48: Microsoft®OneDriveforBusinessPlan1Open ShrdSvr MonthlySubscriptions-VolumeLicense Government OLP 1License NoLevel Qualified Annual | K48: Unidad | L48: Und | M48: Producto | N48: N/A | O48: N/A | P48: N/A | Q48: 3NN-00024 | R48: Suscripción Anual | S48: 59.64909274 | T48: 1 | U48: 0
A49: Controles Empresariales S.A.S.Categoría 13PP-00006P8415 | B49: 3PP-00006P8415Categoría 1 | D49: Controles Empresariales S.A.S. | E49: 3PP-00006P8415 | F49: 1 | G49: Proj Online Essentials Open | H49: Proj Online Essentials Open | I49: N/A | J49: Microsoft®ProjOnlineEssentialsOpen ShrdSvr MonthlySubscriptions-VolumeLicense Government OLP 1License NoLevel Qualified Annual | K49: Unidad | L49: Und | M49: Producto | N49: N/A | O49: N/A | P49: N/A | Q49: 3PP-00006 | R49: Suscripción Anual | S49: 83.50876392 | T49: 1 | U49: 0
A50: Controles Empresariales S.A.S.Categoría 13VU-00089P8202 | B50: 3VU-00089P8202Categoría 1 | D50: Controles Empresariales S.A.S. | E50: 3VU-00089P8202 | F50: 1 | G50: MSDN Platforms | H50: MSDN Platforms | I50: N/A | J50: Microsoft®MSDNPlatforms License/SoftwareAssurancePack Government OLP 1License NoLevel Qualified | K50: Unidad | L50: Und | M50: Producto | N50: N/A | O50: N/A | P50: N/A | Q50: 3VU-00089 | R50: Licencia | S50: 2190.187124 | T50: 1 | U50: 1
A51: Controles Empresariales S.A.S.Categoría 13VU-00090P8203 | B51: 3VU-00090P8203Categoría 1 | D51: Controles Empresariales S.A.S. | E51: 3VU-00090P8203 | F51: 1 | G51: MSDN Platforms | H51: MSDN Platforms | I51: N/A | J51: Microsoft®MSDNPlatforms SoftwareAssurance Government OLP 1License NoLevel Qualified | K51: Unidad | L51: Und | M51: Producto | N51: N/A | O51: N/A | P51: N/A | Q51: 3VU-00090 | R51: Licencia | S51: 2190.187124 | T51: 1 | U51: 1
A52: Controles Empresariales S.A.S.Categoría 13YF-00123P8336 | B52: 3YF-00123P8336Categoría 1 | D52: Controles Empresariales S.A.S. | E52: 3YF-00123P8336 | F52: 1 | G52: Office Mac Standard | H52: Office Mac Standard | I52: N/A | J52: Microsoft®OfficeMacStandard License/SoftwareAssurancePack Government OLP 1License NoLevel | K52: Unidad | L52: Und | M52: Producto | N52: N/A | O52: N/A | P52: N/A | Q52: 3YF-00123 | R52: Licencia | S52: 532.3976293 | T52: 1 | U52: 1
A53: Controles Empresariales S.A.S.Categoría 13YF-00124P8337 | B53: 3YF-00124P8337Categoría 1 | D53: Controles Empresariales S.A.S. | E53: 3YF-00124P8337 | F53: 1 | G53: Office Mac Standard | H53: Office Mac Standard | I53: N/A | J53: Microsoft®OfficeMacStandard SoftwareAssurance Government OLP 1License NoLevel | K53: Unidad | L53: Und | M53: Producto | N53: N/A | O53: N/A | P53: N/A | Q53: 3YF-00124 | R53: Licencia | S53: 195.4151816 | T53: 1 | U53: 1
A54: Controles Empresariales S.A.S.Categoría 13ZK-00165P8796 | B54: 3ZK-00165P8796Categoría 1 | D54: Controles Empresariales S.A.S. | E54: 3ZK-00165P8796 | F54: 1 | G54: Sys Ctr Orchestrator Svr | H54: Sys Ctr Orchestrator Svr | I54: N/A | J54: Microsoft®SysCtrOrchestratorSvr License/SoftwareAssurancePack Government OLP 1License NoLevel PerOSE | K54: Unidad | L54: Und | M54: Producto | N54: N/A | O54: N/A | P54: N/A | Q54: 3ZK-00165 | R54: Licencia | S54: 24.54961209 | T54: 1 | U54: 1
A55: Controles Empresariales S.A.S.Categoría 13ZK-00166P8797 | B55: 3ZK-00166P8797Categoría 1 | D55: Controles Empresariales S.A.S. | E55: 3ZK-00166P8797 | F55: 1 | G55: Sys Ctr Orchestrator Svr | H55: Sys Ctr Orchestrator Svr | I55: N/A | J55: Microsoft®SysCtrOrchestratorSvr License/SoftwareAssurancePack Government OLP 1License NoLevel PerUsr | K55: Unidad | L55: Und | M55: Producto | N55: N/A | O55: N/A | P55: N/A | Q55: 3ZK-00166 | R55: Licencia | S55: 31.94143577 | T55: 1 | U55: 1
A56: Controles Empresariales S.A.S.Categoría 13ZK-00167P8798 | B56: 3ZK-00167P8798Categoría 1 | D56: Controles Empresariales S.A.S. | E56: 3ZK-00167P8798 | F56: 1 | G56: Sys Ctr Orchestrator Svr | H56: Sys Ctr Orchestrator Svr | I56: N/A | J56: Microsoft®SysCtrOrchestratorSvr SoftwareAssurance Government OLP 1License NoLevel PerOSE | K56: Unidad | L56: Und | M56: Producto | N56: N/A | O56: N/A | P56: N/A | Q56: 3ZK-00167 | R56: Licencia | S56: 8.1403 | T56: 1 | U56: 1
A57: Controles Empresariales S.A.S.Categoría 13ZK-00168P8799 | B57: 3ZK-00168P8799Categoría 1 | D57: Controles Empresariales S.A.S. | E57: 3ZK-00168P8799 | F57: 1 | G57: Sys Ctr Orchestrator Svr | H57: Sys Ctr Orchestrator Svr | I57: N/A | J57: Microsoft®SysCtrOrchestratorSvr SoftwareAssurance Government OLP 1License NoLevel PerUsr | K57: Unidad | L57: Und | M57: Producto | N57: N/A | O57: N/A | P57: N/A | Q57: 3ZK-00168 | R57: Licencia | S57: 10.60812083 | T57: 1 | U57: 1
A58: Controles Empresariales S.A.S.Categoría 15A5-00006P8276 | B58: 5A5-00006P8276Categoría 1 | D58: Controles Empresariales S.A.S. | E58: 5A5-00006P8276 | F58: 1 | G58: O365 Extra File Storage Open | H58: O365 Extra File Storage Open | I58: N/A | J58: Microsoft®O365ExtraFileStorageOpen ShrdSvr MonthlySubscriptions-VolumeLicense Government OLP 1License NoLevel Addon Qualified Annual | K58: Unidad | L58: Und | M58: Producto | N58: N/A | O58: N/A | P58: N/A | Q58: 5A5-00006 | R58: Suscripción Anual | S58: 2.807 | T58: 1 | U58: 0
A59: Controles Empresariales S.A.S.Categoría 15A9-00006P8071 | B59: 5A9-00006P8071Categoría 1 | D59: Controles Empresariales S.A.S. | E59: 5A9-00006P8071 | F59: 1 | G59: EOA for Exchange Online Open | H59: EOA for Exchange Online Open | I59: N/A | J59: Microsoft®EOAforExchangeOnlineOpen ShrdSvr MonthlySubscriptions-VolumeLicense Government OLP 1License NoLevel Addon Qualified Annual | K59: Unidad | L59: Und | M59: Producto | N59: N/A | O59: N/A | P59: N/A | Q59: 5A9-00006 | R59: Suscripción Anual | S59: 35.78938144 | T59: 1 | U59: 0
A60: Controles Empresariales S.A.S.Categoría 15HK-00288P8200 | B60: 5HK-00288P8200Categoría 1 | D60: Controles Empresariales S.A.S. | E60: 5HK-00288P8200 | F60: 1 | G60: Lync Mac | H60: Lync Mac | I60: N/A | J60: Microsoft®LyncMac License/SoftwareAssurancePack Government OLP 1License NoLevel | K60: Unidad | L60: Und | M60: Producto | N60: N/A | O60: N/A | P60: N/A | Q60: 5HK-00288 | R60: Licencia | S60: 43.48534485 | T60: 1 | U60: 1
A61: Controles Empresariales S.A.S.Categoría 15HK-00289P8201 | B61: 5HK-00289P8201Categoría 1 | D61: Controles Empresariales S.A.S. | E61: 5HK-00289P8201 | F61: 1 | G61: Lync Mac | H61: Lync Mac | I61: N/A | J61: Microsoft®LyncMac SoftwareAssurance Government OLP 1License NoLevel | K61: Unidad | L61: Und | M61: Producto | N61: N/A | O61: N/A | P61: N/A | Q61: 5HK-00289 | R61: Licencia | S61: 15.88294167 | T61: 1 | U61: 1
A62: Controles Empresariales S.A.S.Categoría 15HK-00290P8199 | B62: 5HK-00290P8199Categoría 1 | D62: Controles Empresariales S.A.S. | E62: 5HK-00290P8199 | F62: 1 | G62: Lync Mac | H62: Lync Mac | I62: N/A | J62: Microsoft®LyncMac 2011 Government OLP 1License NoLevel | K62: Unidad | L62: Und | M62: Producto | N62: N/A | O62: N/A | P62: N/A | Q62: 5HK-00290 | R62: Licencia | S62: 27.60228514 | T62: 1 | U62: 1
A63: Controles Empresariales S.A.S.Categoría 15HU-00285P8532 | B63: 5HU-00285P8532Categoría 1 | D63: Controles Empresariales S.A.S. | E63: 5HU-00285P8532 | F63: 1 | G63: SfB Server | H63: SfB Server | I63: N/A | J63: Microsoft®SfBServer License/SoftwareAssurancePack Government OLP 1License NoLevel | K63: Unidad | L63: Und | M63: Producto | N63: N/A | O63: N/A | P63: N/A | Q63: 5HU-00285 | R63: Licencia | S63: 4956.549682 | T63: 1 | U63: 1
A64: Controles Empresariales S.A.S.Categoría 15HU-00286P8533 | B64: 5HU-00286P8533Categoría 1 | D64: Controles Empresariales S.A.S. | E64: 5HU-00286P8533 | F64: 1 | G64: SfB Server | H64: SfB Server | I64: N/A | J64: Microsoft®SfBServer SoftwareAssurance Government OLP 1License NoLevel | K64: Unidad | L64: Und | M64: Producto | N64: N/A | O64: N/A | P64: N/A | Q64: 5HU-00286 | R64: Licencia | S64: 1652.257302 | T64: 1 | U64: 1
A65: Controles Empresariales S.A.S.Categoría 16VC-01217P9015 | B65: 6VC-01217P9015Categoría 1 | D65: Controles Empresariales S.A.S. | E65: 6VC-01217P9015 | F65: 1 | G65: Win Rmt Dsktp Svcs CAL | H65: Win Rmt Dsktp Svcs CAL | I65: N/A | J65: Microsoft®WinRmtDsktpSvcsCAL License/SoftwareAssurancePack Government OLP 1License NoLevel DvcCAL | K65: Unidad | L65: Und | M65: Producto | N65: N/A | O65: N/A | P65: N/A | Q65: 6VC-01217 | R65: Licencia | S65: 147.8244755 | T65: 1 | U65: 1
A66: Controles Empresariales S.A.S.Categoría 16VC-01218P9016 | B66: 6VC-01218P9016Categoría 1 | D66: Controles Empresariales S.A.S. | E66: 6VC-01218P9016 | F66: 1 | G66: Win Rmt Dsktp Svcs CAL | H66: Win Rmt Dsktp Svcs CAL | I66: N/A | J66: Microsoft®WinRmtDsktpSvcsCAL License/SoftwareAssurancePack Government OLP 1License NoLevel UsrCAL | K66: Unidad | L66: Und | M66: Producto | N66: N/A | O66: N/A | P66: N/A | Q66: 6VC-01218 | R66: Licencia | S66: 177.8127672 | T66: 1 | U66: 1
A67: =D67&"Categoría "&F67&E67 -> Controles Empresariales S.A.S.Categoría 16VC-01219P9017 | B67: =E67&"Categoría "&F67 -> 6VC-01219P9017Categoría 1 | D67: Controles Empresariales S.A.S. | E67: 6VC-01219P9017 | F67: 1 | G67: Win Rmt Dsktp Svcs CAL | H67: Win Rmt Dsktp Svcs CAL | I67: N/A | J67: Microsoft®WinRmtDsktpSvcsCAL SoftwareAssurance Government OLP 1License NoLevel DvcCAL | K67: Unidad | L67: Und | M67: Producto | N67: N/A | O67: N/A | P67: N/A | Q67: 6VC-01219 | R67: Licencia | S67: 49.30989167 | T67: 1 | U67: 1
A68: Controles Empresariales S.A.S.Categoría 16VC-01220P9018 | B68: 6VC-01220P9018Categoría 1 | D68: Controles Empresariales S.A.S. | E68: 6VC-01220P9018 | F68: 1 | G68: Win Rmt Dsktp Svcs CAL | H68: Win Rmt Dsktp Svcs CAL | I68: N/A | J68: Microsoft®WinRmtDsktpSvcsCAL SoftwareAssurance Government OLP 1License NoLevel UsrCAL | K68: Unidad | L68: Und | M68: Producto | N68: N/A | O68: N/A | P68: N/A | Q68: 6VC-01220 | R68: Licencia | S68: 59.30992895 | T68: 1 | U68: 1
A69: Controles Empresariales S.A.S.Categoría 16XC-00281P9026 | B69: 6XC-00281P9026Categoría 1 | D69: Controles Empresariales S.A.S. | E69: 6XC-00281P9026 | F69: 1 | G69: Win Rmt Dsktp Svcs Ext Conn | H69: Win Rmt Dsktp Svcs Ext Conn | I69: N/A | J69: Microsoft®WinRmtDsktpSvcsExtConn License/SoftwareAssurancePack Government OLP 1License NoLevel Qualified | K69: Unidad | L69: Und | M69: Producto | N69: N/A | O69: N/A | P69: N/A | Q69: 6XC-00281 | R69: Licencia | S69: 14958.39765 | T69: 1 | U69: 1
A70: Controles Empresariales S.A.S.Categoría 16XC-00282P9027 | B70: 6XC-00282P9027Categoría 1 | D70: Controles Empresariales S.A.S. | E70: 6XC-00282P9027 | F70: 1 | G70: Win Rmt Dsktp Svcs Ext Conn | H70: Win Rmt Dsktp Svcs Ext Conn | I70: N/A | J70: Microsoft®WinRmtDsktpSvcsExtConn SoftwareAssurance Government OLP 1License NoLevel Qualified | K70: Unidad | L70: Und | M70: Producto | N70: N/A | O70: N/A | P70: N/A | Q70: 6XC-00282 | R70: Licencia | S70: 4986.093522 | T70: 1 | U70: 1
A71: Controles Empresariales S.A.S.Categoría 16YH-00528P8603 | B71: 6YH-00528P8603Categoría 1 | D71: Controles Empresariales S.A.S. | E71: 6YH-00528P8603 | F71: 1 | G71: Skype for Business | H71: Skype for Business | I71: N/A | J71: Microsoft®SkypeforBusiness License/SoftwareAssurancePack Government OLP 1License NoLevel | K71: Unidad | L71: Und | M71: Producto | N71: N/A | O71: N/A | P71: N/A | Q71: 6YH-00528 | R71: Licencia | S71: 43.22803511 | T71: 1 | U71: 1
A72: Controles Empresariales S.A.S.Categoría 16YH-00529P8604 | B72: 6YH-00529P8604Categoría 1 | D72: Controles Empresariales S.A.S. | E72: 6YH-00529P8604 | F72: 1 | G72: Skype for Business | H72: Skype for Business | I72: N/A | J72: Microsoft®SkypeforBusiness SoftwareAssurance Government OLP 1License NoLevel | K72: Unidad | L72: Und | M72: Producto | N72: N/A | O72: N/A | P72: N/A | Q72: 6YH-00529 | R72: Licencia | S72: 15.88294167 | T72: 1 | U72: 1
A73: Controles Empresariales S.A.S.Categoría 16ZH-00350P8591 | B73: 6ZH-00350P8591Categoría 1 | D73: Controles Empresariales S.A.S. | E73: 6ZH-00350P8591 | F73: 1 | G73: SfB Server Std CAL | H73: SfB Server Std CAL | I73: N/A | J73: Microsoft®SfBServerStdCAL License/SoftwareAssurancePack Government OLP 1License NoLevel DvcCAL | K73: Unidad | L73: Und | M73: Producto | N73: N/A | O73: N/A | P73: N/A | Q73: 6ZH-00350 | R73: Licencia | S73: 41.61401032 | T73: 1 | U73: 1
A74: Controles Empresariales S.A.S.Categoría 16ZH-00371P8592 | B74: 6ZH-00371P8592Categoría 1 | D74: Controles Empresariales S.A.S. | E74: 6ZH-00371P8592 | F74: 1 | G74: SfB Server Std CAL | H74: SfB Server Std CAL | I74: N/A | J74: Microsoft®SfBServerStdCAL License/SoftwareAssurancePack Government OLP 1License NoLevel UsrCAL | K74: Unidad | L74: Und | M74: Producto | N74: N/A | O74: N/A | P74: N/A | Q74: 6ZH-00371 | R74: Licencia | S74: 53.5788467 | T74: 1 | U74: 1
A75: Controles Empresariales S.A.S.Categoría 16ZH-00372P8593 | B75: 6ZH-00372P8593Categoría 1 | D75: Controles Empresariales S.A.S. | E75: 6ZH-00372P8593 | F75: 1 | G75: SfB Server Std CAL | H75: SfB Server Std CAL | I75: N/A | J75: Microsoft®SfBServerStdCAL SoftwareAssurance Government OLP 1License NoLevel DvcCAL | K75: Unidad | L75: Und | M75: Producto | N75: N/A | O75: N/A | P75: N/A | Q75: 6ZH-00372 | R75: Licencia | S75: 13.87125833 | T75: 1 | U75: 1
A76: Controles Empresariales S.A.S.Categoría 16ZH-00373P8594 | B76: 6ZH-00373P8594Categoría 1 | D76: Controles Empresariales S.A.S. | E76: 6ZH-00373P8594 | F76: 1 | G76: SfB Server Std CAL | H76: SfB Server Std CAL | I76: N/A | J76: Microsoft®SfBServerStdCAL SoftwareAssurance Government OLP 1License NoLevel UsrCAL | K76: Unidad | L76: Und | M76: Producto | N76: N/A | O76: N/A | P76: N/A | Q76: 6ZH-00373 | R76: Licencia | S76: 17.894625 | T76: 1 | U76: 1
A77: Controles Empresariales S.A.S.Categoría 176N-00597P8484 | B77: 76N-00597P8484Categoría 1 | D77: Controles Empresariales S.A.S. | E77: 76N-00597P8484 | F77: 1 | G77: SharePoint Enterprise CAL | H77: SharePoint Enterprise CAL | I77: N/A | J77: Microsoft®SharePointEnterpriseCAL License/SoftwareAssurancePack Government OLP 1License NoLevel DvcCAL | K77: Unidad | L77: Und | M77: Producto | N77: N/A | O77: N/A | P77: N/A | Q77: 76N-00597 | R77: Licencia | S77: 111.27475 | T77: 1 | U77: 1
A78: Controles Empresariales S.A.S.Categoría 176N-00603P8485 | B78: 76N-00603P8485Categoría 1 | D78: Controles Empresariales S.A.S. | E78: 76N-00603P8485 | F78: 1 | G78: SharePoint Enterprise CAL | H78: SharePoint Enterprise CAL | I78: N/A | J78: Microsoft®SharePointEnterpriseCAL License/SoftwareAssurancePack Government OLP 1License NoLevel UsrCAL | K78: Unidad | L78: Und | M78: Producto | N78: N/A | O78: N/A | P78: N/A | Q78: 76N-00603 | R78: Licencia | S78: 145.5671762 | T78: 1 | U78: 1
A79: Controles Empresariales S.A.S.Categoría 176N-00654P8486 | B79: 76N-00654P8486Categoría 1 | D79: Controles Empresariales S.A.S. | E79: 76N-00654P8486 | F79: 1 | G79: SharePoint Enterprise CAL | H79: SharePoint Enterprise CAL | I79: N/A | J79: Microsoft®SharePointEnterpriseCAL SoftwareAssurance Government OLP 1License NoLevel DvcCAL | K79: Unidad | L79: Und | M79: Producto | N79: N/A | O79: N/A | P79: N/A | Q79: 76N-00654 | R79: Licencia | S79: 37.05251786 | T79: 1 | U79: 1
A80: Controles Empresariales S.A.S.Categoría 176N-00660P8487 | B80: 76N-00660P8487Categoría 1 | D80: Controles Empresariales S.A.S. | E80: 76N-00660P8487 | F80: 1 | G80: SharePoint Enterprise CAL | H80: SharePoint Enterprise CAL | I80: N/A | J80: Microsoft®SharePointEnterpriseCAL SoftwareAssurance Government OLP 1License NoLevel UsrCAL | K80: Unidad | L80: Und | M80: Producto | N80: N/A | O80: N/A | P80: N/A | Q80: 76N-00660 | R80: Licencia | S80: 48.56133862 | T80: 1 | U80: 1
A81: Controles Empresariales S.A.S.Categoría 177D-00105P8895 | B81: 77D-00105P8895Categoría 1 | D81: Controles Empresariales S.A.S. | E81: 77D-00105P8895 | F81: 1 | G81: Visual Studio Pro Sub MSDN | H81: Visual Studio Pro Sub MSDN | I81: N/A | J81: Microsoft®VisualStudioProSubMSDN License/SoftwareAssurancePack Government OLP 1License NoLevel Qualified | K81: Unidad | L81: Und | M81: Producto | N81: N/A | O81: N/A | P81: N/A | Q81: 77D-00105 | R81: Licencia | S81: 1031.157867 | T81: 1 | U81: 1
A82: Controles Empresariales S.A.S.Categoría 177D-00106P8896 | B82: 77D-00106P8896Categoría 1 | D82: Controles Empresariales S.A.S. | E82: 77D-00106P8896 | F82: 1 | G82: Visual Studio Pro Sub MSDN | H82: Visual Studio Pro Sub MSDN | I82: N/A | J82: Microsoft®VisualStudioProSubMSDN SoftwareAssurance Government OLP 1License NoLevel Qualified | K82: Unidad | L82: Und | M82: Producto | N82: N/A | O82: N/A | P82: N/A | Q82: 77D-00106 | R82: Licencia | S82: 850.9239366 | T82: 1 | U82: 1
A83: Controles Empresariales S.A.S.Categoría 1038f2538-4813-4a94-93a3-8e2425ac78a2 | B83: 038f2538-4813-4a94-93a3-8e2425ac78a2Categoría 1 | D83: Controles Empresariales S.A.S. | E83: 038f2538-4813-4a94-93a3-8e2425ac78a2 | F83: 1 | G83: Dynamics | H83: Dynamics | I83: N/A | J83: Dynamics 365 Unified Operations - Activity Cloud Add-on from AX/DPLUser (Qualified Offer) | K83: Unidad | L83: Und | M83: Producto | N83: N/A | O83: N/A | P83: N/A | Q83: 038f2538-4813-4a94-93a3-8e2425ac78a2 | R83: Suscripción Mensual con pago anual | S83: 9.305882353 | T83: 1 | U83: 0
A84: Controles Empresariales S.A.S.Categoría 17AH-00419P8548 | B84: 7AH-00419P8548Categoría 1 | D84: Controles Empresariales S.A.S. | E84: 7AH-00419P8548 | F84: 1 | G84: SfB Server Ent CAL | H84: SfB Server Ent CAL | I84: N/A | J84: Microsoft®SfBServerEntCAL License/SoftwareAssurancePack Government OLP 1License NoLevel DvcCAL | K84: Unidad | L84: Und | M84: Producto | N84: N/A | O84: N/A | P84: N/A | Q84: 7AH-00419 | R84: Licencia | S84: 145.5671781 | T84: 1 | U84: 1
A85: Controles Empresariales S.A.S.Categoría 17AH-00420P8549 | B85: 7AH-00420P8549Categoría 1 | D85: Controles Empresariales S.A.S. | E85: 7AH-00420P8549 | F85: 1 | G85: SfB Server Ent CAL | H85: SfB Server Ent CAL | I85: N/A | J85: Microsoft®SfBServerEntCAL License/SoftwareAssurancePack Government OLP 1License NoLevel UsrCAL | K85: Unidad | L85: Und | M85: Producto | N85: N/A | O85: N/A | P85: N/A | Q85: 7AH-00420 | R85: Licencia | S85: 188.3741625 | T85: 1 | U85: 1
A86: Controles Empresariales S.A.S.Categoría 17AH-00421P8550 | B86: 7AH-00421P8550Categoría 1 | D86: Controles Empresariales S.A.S. | E86: 7AH-00421P8550 | F86: 1 | G86: SfB Server Ent CAL | H86: SfB Server Ent CAL | I86: N/A | J86: Microsoft®SfBServerEntCAL SoftwareAssurance Government OLP 1License NoLevel DvcCAL | K86: Unidad | L86: Und | M86: Producto | N86: N/A | O86: N/A | P86: N/A | Q86: 7AH-00421 | R86: Licencia | S86: 48.56133862 | T86: 1 | U86: 1
A87: Controles Empresariales S.A.S.Categoría 17AH-00422P8551 | B87: 7AH-00422P8551Categoría 1 | D87: Controles Empresariales S.A.S. | E87: 7AH-00422P8551 | F87: 1 | G87: SfB Server Ent CAL | H87: SfB Server Ent CAL | I87: N/A | J87: Microsoft®SfBServerEntCAL SoftwareAssurance Government OLP 1License NoLevel UsrCAL | K87: Unidad | L87: Und | M87: Producto | N87: N/A | O87: N/A | P87: N/A | Q87: 7AH-00422 | R87: Licencia | S87: 62.83037385 | T87: 1 | U87: 1
A88: Controles Empresariales S.A.S.Categoría 1fbf0328a-8b0f-47a6-9483-dc2b36183fceP7421 | B88: fbf0328a-8b0f-47a6-9483-dc2b36183fceP7421Categoría 1 | D88: Controles Empresariales S.A.S. | E88: fbf0328a-8b0f-47a6-9483-dc2b36183fceP7421 | F88: 1 | G88: Dynamics | H88: Dynamics | I88: N/A | J88: Dynamics 365 - Additional Database Storage (Qualified Offer) | K88: Unidad | L88: Und | M88: Producto | N88: N/A | O88: N/A | P88: N/A | Q88: fbf0328a-8b0f-47a6-9483-dc2b36183fce | R88: Suscripción Mensual | S88: 4.546186 | T88: 1 | U88: 0
A89: Controles Empresariales S.A.S.Categoría 17JQ-00314P8651 | B89: 7JQ-00314P8651Categoría 1 | D89: Controles Empresariales S.A.S. | E89: 7JQ-00314P8651 | F89: 1 | G89: SQL Svr Enterprise Core | H89: SQL Svr Enterprise Core | I89: N/A | J89: Microsoft®SQLSvrEnterpriseCore License/SoftwareAssurancePack Government OLP 2Licenses NoLevel CoreLic Qualified | K89: Unidad | L89: Und | M89: Producto | N89: N/A | O89: N/A | P89: N/A | Q89: 7JQ-00314 | R89: Licencia | S89: 18696.11693 | T89: 1 | U89: 1
A90: Controles Empresariales S.A.S.Categoría 17JQ-00315P8652 | B90: 7JQ-00315P8652Categoría 1 | D90: Controles Empresariales S.A.S. | E90: 7JQ-00315P8652 | F90: 1 | G90: SQL Svr Enterprise Core | H90: SQL Svr Enterprise Core | I90: N/A | J90: Microsoft®SQLSvrEnterpriseCore SoftwareAssurance Government OLP 2Licenses NoLevel CoreLic Qualified | K90: Unidad | L90: Und | M90: Producto | N90: N/A | O90: N/A | P90: N/A | Q90: 7JQ-00315 | R90: Licencia | S90: 6231.999928 | T90: 1 | U90: 1
A91: Controles Empresariales S.A.S.Categoría 17JQ-01300 | B91: 7JQ-01300Categoría 1 | D91: Controles Empresariales S.A.S. | E91: 7JQ-01300 | F91: 1 | G91: SQL Svr Enterprise Core | H91: SQL Svr Enterprise Core | I91: NA | J91: Microsoft®SQLSvrEnterpriseCore 2017 Government OLP 2Licenses NoLevel CoreLic Qualified | K91: Unidad | L91: Und | M91: Producto | N91: N/A | O91: N/A | P91: N/A | Q91: 7JQ-01300 | R91: Licencia | S91: 13197.30031 | T91: 1 | U91: 1
A92: Controles Empresariales S.A.S.Categoría 17JT-00003P8314 | B92: 7JT-00003P8314Categoría 1 | D92: Controles Empresariales S.A.S. | E92: 7JT-00003P8314 | F92: 1 | G92: O365 Plan E1 Archiving | H92: O365 Plan E1 Archiving | I92: N/A | J92: Microsoft®O365PlanE1Archiving ShrdSvr MonthlySubscriptions-VolumeLicense Government OLP 1License NoLevel Qualified Annual | K92: Unidad | L92: Und | M92: Producto | N92: N/A | O92: N/A | P92: N/A | Q92: 7JT-00003 | R92: Suscripción Anual | S92: 108.9121706 | T92: 1 | U92: 0
A93: Controles Empresariales S.A.S.Categoría 17NQ-00266P8661 | B93: 7NQ-00266P8661Categoría 1 | D93: Controles Empresariales S.A.S. | E93: 7NQ-00266P8661 | F93: 1 | G93: SQL Svr Standard Core | H93: SQL Svr Standard Core | I93: N/A | J93: Microsoft®SQLSvrStandardCore License/SoftwareAssurancePack Government OLP 2Licenses NoLevel CoreLic Qualified | K93: Unidad | L93: Und | M93: Producto | N93: N/A | O93: N/A | P93: N/A | Q93: 7NQ-00266 | R93: Licencia | S93: 4874.830296 | T93: 1 | U93: 1
A94: Controles Empresariales S.A.S.Categoría 17NQ-00267P8662 | B94: 7NQ-00267P8662Categoría 1 | D94: Controles Empresariales S.A.S. | E94: 7NQ-00267P8662 | F94: 1 | G94: SQL Svr Standard Core | H94: SQL Svr Standard Core | I94: N/A | J94: Microsoft®SQLSvrStandardCore SoftwareAssurance Government OLP 2Licenses NoLevel CoreLic Qualified | K94: Unidad | L94: Und | M94: Producto | N94: N/A | O94: N/A | P94: N/A | Q94: 7NQ-00267 | R94: Licencia | S94: 1624.982378 | T94: 1 | U94: 1
A95: Controles Empresariales S.A.S.Categoría 17NQ-01183 | B95: 7NQ-01183Categoría 1 | D95: Controles Empresariales S.A.S. | E95: 7NQ-01183 | F95: 1 | G95: SQL Svr Standard Core | H95: SQL Svr Standard Core | I95: NA | J95: Microsoft®SQLSvrStandardCore 2017 Government OLP 2Licenses NoLevel CoreLic Qualified | K95: Unidad | L95: Und | M95: Producto | N95: N/A | O95: N/A | P95: N/A | Q95: 7NQ-01183 | R95: Licencia | S95: 3441.01548 | T95: 1 | U95: 1
A96: Controles Empresariales S.A.S.Categoría 17NS-00006P8429 | B96: 7NS-00006P8429Categoría 1 | D96: Controles Empresariales S.A.S. | E96: 7NS-00006P8429 | F96: 1 | G96: Proj Online Professional Open | H96: Proj Online Professional Open | I96: N/A | J96: Microsoft®ProjOnlineProfessionalOpen ShrdSvr MonthlySubscriptions-VolumeLicense Government OLP 1License NoLevel Qualified Annual | K96: Unidad | L96: Und | M96: Producto | N96: N/A | O96: N/A | P96: N/A | Q96: 7NS-00006 | R96: Suscripción Anual | S96: 357.8947063 | T96: 1 | U96: 0
A97: Controles Empresariales S.A.S.Categoría 17U6-00006P8190 | B97: 7U6-00006P8190Categoría 1 | D97: Controles Empresariales S.A.S. | E97: 7U6-00006P8190 | F97: 1 | G97: Intune OPEN Add-On | H97: Intune OPEN Add-On | I97: N/A | J97: Microsoft®IntuneOPENAdd-On ShrdSvr MonthlySubscriptions-VolumeLicense Government OLP 1License NoLevel Qualified Annual | K97: Unidad | L97: Und | M97: Producto | N97: N/A | O97: N/A | P97: N/A | Q97: 7U6-00006 | R97: Suscripción Anual | S97: 47.71922819 | T97: 1 | U97: 0
A98: Controles Empresariales S.A.S.Categoría 17YC-00006P8422 | B98: 7YC-00006P8422Categoría 1 | D98: Controles Empresariales S.A.S. | E98: 7YC-00006P8422 | F98: 1 | G98: Proj Online Premium Open | H98: Proj Online Premium Open | I98: N/A | J98: Microsoft®ProjOnlinePremiumOpen ShrdSvr MonthlySubscriptions-VolumeLicense Government OLP 1License NoLevel Qualified Annual | K98: Unidad | L98: Und | M98: Producto | N98: N/A | O98: N/A | P98: N/A | Q98: 7YC-00006 | R98: Suscripción Anual | S98: 656.1403142 | T98: 1 | U98: 0
A99: Controles Empresariales S.A.S.Categoría 1810-04848P8629 | B99: 810-04848P8629Categoría 1 | D99: Controles Empresariales S.A.S. | E99: 810-04848P8629 | F99: 1 | G99: SQL Server Enterprise Edition | H99: SQL Server Enterprise Edition | I99: N/A | J99: Microsoft®SQLServerEnterpriseEdition SoftwareAssurance Government OLP 1License NoLevel | K99: Unidad | L99: Und | M99: Producto | N99: N/A | O99: N/A | P99: N/A | Q99: 810-04848 | R99: Licencia | S99: 3894.268905 | T99: 1 | U99: 1
A100: Controles Empresariales S.A.S.Categoría 11fd13474-75a5-4c9b-80a2-fd233c346879 | B100: 1fd13474-75a5-4c9b-80a2-fd233c346879Categoría 1 | D100: Controles Empresariales S.A.S. | E100: 1fd13474-75a5-4c9b-80a2-fd233c346879 | F100: 1 | G100: Dynamics | H100: Dynamics | I100: N/A | J100: Dynamics 365 Unified Operations - Activity From SA from AX/DPLUser (Qualified Offer) | K100: Unidad | L100: Und | M100: Producto | N100: N/A | O100: N/A | P100: N/A | Q100: 1fd13474-75a5-4c9b-80a2-fd233c346879 | R100: Suscripción Mensual con pago anual | S100: 27.35294118 | T100: 1 | U100: 0
A101: Controles Empresariales S.A.S.Categoría 179c103c3-35e2-4e1f-81bb-aae69800a3ef | B101: 79c103c3-35e2-4e1f-81bb-aae69800a3efCategoría 1 | D101: Controles Empresariales S.A.S. | E101: 79c103c3-35e2-4e1f-81bb-aae69800a3ef | F101: 1 | G101: Dynamics | H101: Dynamics | I101: N/A | J101: Dynamics 365 for Retail | K101: Unidad | L101: Und | M101: Producto | N101: N/A | O101: N/A | P101: N/A | Q101: 79c103c3-35e2-4e1f-81bb-aae69800a3ef | R101: Suscripción Mensual con pago anual | S101: 155 | T101: 1 | U101: 0
A102: Controles Empresariales S.A.S.Categoría 19EA-00229P9238 | B102: 9EA-00229P9238Categoría 1 | D102: Controles Empresariales S.A.S. | E102: 9EA-00229P9238 | F102: 1 | G102: Windows Server DC Core | H102: Windows Server DC Core | I102: N/A | J102: Microsoft®WindowsServerDCCore License/SoftwareAssurancePack Government OLP 16Licenses NoLevel CoreLic Qualified | K102: Unidad | L102: Und | M102: Producto | N102: N/A | O102: N/A | P102: N/A | Q102: 9EA-00229 | R102: Licencia | S102: 8338.339116 | T102: 1 | U102: 1
A103: Controles Empresariales S.A.S.Categoría 19EA-00230P9240 | B103: 9EA-00230P9240Categoría 1 | D103: Controles Empresariales S.A.S. | E103: 9EA-00230P9240 | F103: 1 | G103: Windows Server DC Core | H103: Windows Server DC Core | I103: N/A | J103: Microsoft®WindowsServerDCCore SoftwareAssurance Government OLP 16Licenses NoLevel CoreLic Qualified | K103: Unidad | L103: Und | M103: Producto | N103: N/A | O103: N/A | P103: N/A | Q103: 9EA-00230 | R103: Licencia | S103: 2779.485338 | T103: 1 | U103: 1
A104: Controles Empresariales S.A.S.Categoría 19EA-00232P9239 | B104: 9EA-00232P9239Categoría 1 | D104: Controles Empresariales S.A.S. | E104: 9EA-00232P9239 | F104: 1 | G104: Windows Server DC Core | H104: Windows Server DC Core | I104: N/A | J104: Microsoft®WindowsServerDCCore License/SoftwareAssurancePack Government OLP 2Licenses NoLevel CoreLic Qualified | K104: Unidad | L104: Und | M104: Producto | N104: N/A | O104: N/A | P104: N/A | Q104: 9EA-00232 | R104: Licencia | S104: 1042.85374 | T104: 1 | U104: 1
A105: Controles Empresariales S.A.S.Categoría 19EA-00233P9241 | B105: 9EA-00233P9241Categoría 1 | D105: Controles Empresariales S.A.S. | E105: 9EA-00233P9241 | F105: 1 | G105: Windows Server DC Core | H105: Windows Server DC Core | I105: N/A | J105: Microsoft®WindowsServerDCCore SoftwareAssurance Government OLP 2Licenses NoLevel CoreLic Qualified | K105: Unidad | L105: Und | M105: Producto | N105: N/A | O105: N/A | P105: N/A | Q105: 9EA-00233 | R105: Licencia | S105: 347.5321428 | T105: 1 | U105: 1
A106: Controles Empresariales S.A.S.Categoría 19EM-00225P9259 | B106: 9EM-00225P9259Categoría 1 | D106: Controles Empresariales S.A.S. | E106: 9EM-00225P9259 | F106: 1 | G106: Windows Server STD CORE | H106: Windows Server STD CORE | I106: N/A | J106: Microsoft®WindowsServerSTDCORE License/SoftwareAssurancePack Government OLP 16Licenses NoLevel CoreLic | K106: Unidad | L106: Und | M106: Producto | N106: N/A | O106: N/A | P106: N/A | Q106: 9EM-00225 | R106: Licencia | S106: 1167.391756 | T106: 1 | U106: 1
A107: Controles Empresariales S.A.S.Categoría 19EM-00226P9261 | B107: 9EM-00226P9261Categoría 1 | D107: Controles Empresariales S.A.S. | E107: 9EM-00226P9261 | F107: 1 | G107: Windows Server STD CORE | H107: Windows Server STD CORE | I107: N/A | J107: Microsoft®WindowsServerSTDCORE SoftwareAssurance Government OLP 16Licenses NoLevel CoreLic | K107: Unidad | L107: Und | M107: Producto | N107: N/A | O107: N/A | P107: N/A | Q107: 9EM-00226 | R107: Licencia | S107: 389.087623 | T107: 1 | U107: 1
A108: Controles Empresariales S.A.S.Categoría 19EM-00228P9260 | B108: 9EM-00228P9260Categoría 1 | D108: Controles Empresariales S.A.S. | E108: 9EM-00228P9260 | F108: 1 | G108: Windows Server STD CORE | H108: Windows Server STD CORE | I108: N/A | J108: Microsoft®WindowsServerSTDCORE License/SoftwareAssurancePack Government OLP 2Licenses NoLevel CoreLic | K108: Unidad | L108: Und | M108: Producto | N108: N/A | O108: N/A | P108: N/A | Q108: 9EM-00228 | R108: Licencia | S108: 147.7425946 | T108: 1 | U108: 1
A109: Controles Empresariales S.A.S.Categoría 19EM-00229P9262 | B109: 9EM-00229P9262Categoría 1 | D109: Controles Empresariales S.A.S. | E109: 9EM-00229P9262 | F109: 1 | G109: Windows Server STD CORE | H109: Windows Server STD CORE | I109: N/A | J109: Microsoft®WindowsServerSTDCORE SoftwareAssurance Government OLP 2Licenses NoLevel CoreLic | K109: Unidad | L109: Und | M109: Producto | N109: N/A | O109: N/A | P109: N/A | Q109: 9EM-00229 | R109: Licencia | S109: 49.28647894 | T109: 1 | U109: 1
A110: Controles Empresariales S.A.S.Categoría 19EN-00165P8826 | B110: 9EN-00165P8826Categoría 1 | D110: Controles Empresariales S.A.S. | E110: 9EN-00165P8826 | F110: 1 | G110: Sys Ctr Standard Core | H110: Sys Ctr Standard Core | I110: N/A | J110: Microsoft®SysCtrStandardCore License/SoftwareAssurancePack Government OLP 16Licenses NoLevel CoreLic Qualified | K110: Unidad | L110: Und | M110: Producto | N110: N/A | O110: N/A | P110: N/A | Q110: 9EN-00165 | R110: Licencia | S110: 1191.40345 | T110: 1 | U110: 1
A111: Controles Empresariales S.A.S.Categoría 19EN-00166P8828 | B111: 9EN-00166P8828Categoría 1 | D111: Controles Empresariales S.A.S. | E111: 9EN-00166P8828 | F111: 1 | G111: Sys Ctr Standard Core | H111: Sys Ctr Standard Core | I111: N/A | J111: Microsoft®SysCtrStandardCore SoftwareAssurance Government OLP 16Licenses NoLevel CoreLic Qualified | K111: Unidad | L111: Und | M111: Producto | N111: N/A | O111: N/A | P111: N/A | Q111: 9EN-00166 | R111: Licencia | S111: 397.0525333 | T111: 1 | U111: 1
A112: Controles Empresariales S.A.S.Categoría 19EN-00167P8827 | B112: 9EN-00167P8827Categoría 1 | D112: Controles Empresariales S.A.S. | E112: 9EN-00167P8827 | F112: 1 | G112: Sys Ctr Standard Core | H112: Sys Ctr Standard Core | I112: N/A | J112: Microsoft®SysCtrStandardCore License/SoftwareAssurancePack Government OLP 2Licenses NoLevel CoreLic Qualified | K112: Unidad | L112: Und | M112: Producto | N112: N/A | O112: N/A | P112: N/A | Q112: 9EN-00167 | R112: Licencia | S112: 148.8303132 | T112: 1 | U112: 1
A113: Controles Empresariales S.A.S.Categoría 19EN-00168P8829 | B113: 9EN-00168P8829Categoría 1 | D113: Controles Empresariales S.A.S. | E113: 9EN-00168P8829 | F113: 1 | G113: Sys Ctr Standard Core | H113: Sys Ctr Standard Core | I113: N/A | J113: Microsoft®SysCtrStandardCore SoftwareAssurance Government OLP 2Licenses NoLevel CoreLic Qualified | K113: Unidad | L113: Und | M113: Producto | N113: N/A | O113: N/A | P113: N/A | Q113: 9EN-00168 | R113: Licencia | S113: 49.56718029 | T113: 1 | U113: 1
A114: Controles Empresariales S.A.S.Categoría 19EP-00171P8741 | B114: 9EP-00171P8741Categoría 1 | D114: Controles Empresariales S.A.S. | E114: 9EP-00171P8741 | F114: 1 | G114: Sys Ctr DataCenter Core | H114: Sys Ctr DataCenter Core | I114: N/A | J114: Microsoft®SysCtrDataCenterCore License/SoftwareAssurancePack Government OLP 16Licenses NoLevel CoreLic Qualified | K114: Unidad | L114: Und | M114: Producto | N114: N/A | O114: N/A | P114: N/A | Q114: 9EP-00171 | R114: Licencia | S114: 3261.169492 | T114: 1 | U114: 1
A115: Controles Empresariales S.A.S.Categoría 19EP-00172P8743 | B115: 9EP-00172P8743Categoría 1 | D115: Controles Empresariales S.A.S. | E115: 9EP-00172P8743 | F115: 1 | G115: Sys Ctr DataCenter Core | H115: Sys Ctr DataCenter Core | I115: N/A | J115: Microsoft®SysCtrDataCenterCore SoftwareAssurance Government OLP 16Licenses NoLevel CoreLic Qualified | K115: Unidad | L115: Und | M115: Producto | N115: N/A | O115: N/A | P115: N/A | Q115: 9EP-00172 | R115: Licencia | S115: 1087.017451 | T115: 1 | U115: 1
A116: Controles Empresariales S.A.S.Categoría 19EP-00173P8742 | B116: 9EP-00173P8742Categoría 1 | D116: Controles Empresariales S.A.S. | E116: 9EP-00173P8742 | F116: 1 | G116: Sys Ctr DataCenter Core | H116: Sys Ctr DataCenter Core | I116: N/A | J116: Microsoft®SysCtrDataCenterCore License/SoftwareAssurancePack Government OLP 2Licenses NoLevel CoreLic Qualified | K116: Unidad | L116: Und | M116: Producto | N116: N/A | O116: N/A | P116: N/A | Q116: 9EP-00173 | R116: Licencia | S116: 407.5672179 | T116: 1 | U116: 1
A117: Controles Empresariales S.A.S.Categoría 19EP-00174P8744 | B117: 9EP-00174P8744Categoría 1 | D117: Controles Empresariales S.A.S. | E117: 9EP-00174P8744 | F117: 1 | G117: Sys Ctr DataCenter Core | H117: Sys Ctr DataCenter Core | I117: N/A | J117: Microsoft®SysCtrDataCenterCore SoftwareAssurance Government OLP 2Licenses NoLevel CoreLic Qualified | K117: Unidad | L117: Und | M117: Producto | N117: N/A | O117: N/A | P117: N/A | Q117: 9EP-00174 | R117: Licencia | S117: 135.812855 | T117: 1 | U117: 1
A118: Controles Empresariales S.A.S.Categoría 19GA-00056P8698 | B118: 9GA-00056P8698Categoría 1 | D118: Controles Empresariales S.A.S. | E118: 9GA-00056P8698 | F118: 1 | G118: Core Infra Svr Ste Std Core | H118: Core Infra Svr Ste Std Core | I118: N/A | J118: Microsoft®CoreInfraSvrSteStdCore License/SoftwareAssurancePack Government OLP 16Licenses NoLevel W/OSYSCTRSERVERLICENSE CoreLic Qualified | K118: Unidad | L118: Und | M118: Producto | N118: N/A | O118: N/A | P118: N/A | Q118: 9GA-00056 | R118: Licencia | S118: 1502.339163 | T118: 1 | U118: 1
A119: Controles Empresariales S.A.S.Categoría 19GA-00057P8701 | B119: 9GA-00057P8701Categoría 1 | D119: Controles Empresariales S.A.S. | E119: 9GA-00057P8701 | F119: 1 | G119: Core Infra Svr Ste Std Core | H119: Core Infra Svr Ste Std Core | I119: N/A | J119: Microsoft®CoreInfraSvrSteStdCore License/SoftwareAssurancePack Government OLP 2Licenses NoLevel W/OSYSCTRSERVERLICENSE CoreLic Qualified | K119: Unidad | L119: Und | M119: Producto | N119: N/A | O119: N/A | P119: N/A | Q119: 9GA-00057 | R119: Licencia | S119: 189.5203607 | T119: 1 | U119: 1
A120: Controles Empresariales S.A.S.Categoría 19GA-00292P8697 | B120: 9GA-00292P8697Categoría 1 | D120: Controles Empresariales S.A.S. | E120: 9GA-00292P8697 | F120: 1 | G120: Core Infra Svr Ste Std Core | H120: Core Infra Svr Ste Std Core | I120: N/A | J120: Microsoft®CoreInfraSvrSteStdCore License/SoftwareAssurancePack Government OLP 16Licenses NoLevel CoreLic Qualified | K120: Unidad | L120: Und | M120: Producto | N120: N/A | O120: N/A | P120: N/A | Q120: 9GA-00292 | R120: Licencia | S120: 2200.362488 | T120: 1 | U120: 1
A121: Controles Empresariales S.A.S.Categoría 19GA-00293P8703 | B121: 9GA-00293P8703Categoría 1 | D121: Controles Empresariales S.A.S. | E121: 9GA-00293P8703 | F121: 1 | G121: Core Infra Svr Ste Std Core | H121: Core Infra Svr Ste Std Core | I121: N/A | J121: Microsoft®CoreInfraSvrSteStdCore SoftwareAssurance Government OLP 16Licenses NoLevel CoreLic Qualified | K121: Unidad | L121: Und | M121: Producto | N121: N/A | O121: N/A | P121: N/A | Q121: 9GA-00293 | R121: Licencia | S121: 733.4151376 | T121: 1 | U121: 1
A122: Controles Empresariales S.A.S.Categoría 19GA-00294P8700 | B122: 9GA-00294P8700Categoría 1 | D122: Controles Empresariales S.A.S. | E122: 9GA-00294P8700 | F122: 1 | G122: Core Infra Svr Ste Std Core | H122: Core Infra Svr Ste Std Core | I122: N/A | J122: Microsoft®CoreInfraSvrSteStdCore License/SoftwareAssurancePack Government OLP 2Licenses NoLevel CoreLic Qualified | K122: Unidad | L122: Und | M122: Producto | N122: N/A | O122: N/A | P122: N/A | Q122: 9GA-00294 | R122: Licencia | S122: 276.7601358 | T122: 1 | U122: 1
A123: Controles Empresariales S.A.S.Categoría 19GA-00295P8704 | B123: 9GA-00295P8704Categoría 1 | D123: Controles Empresariales S.A.S. | E123: 9GA-00295P8704 | F123: 1 | G123: Core Infra Svr Ste Std Core | H123: Core Infra Svr Ste Std Core | I123: N/A | J123: Microsoft®CoreInfraSvrSteStdCore SoftwareAssurance Government OLP 2Licenses NoLevel CoreLic Qualified | K123: Unidad | L123: Und | M123: Producto | N123: N/A | O123: N/A | P123: N/A | Q123: 9GA-00295 | R123: Licencia | S123: 92.17532828 | T123: 1 | U123: 1
A124: Controles Empresariales S.A.S.Categoría 19GA-00601P8699 | B124: 9GA-00601P8699Categoría 1 | D124: Controles Empresariales S.A.S. | E124: 9GA-00601P8699 | F124: 1 | G124: Core Infra Svr Ste Std Core | H124: Core Infra Svr Ste Std Core | I124: N/A | J124: Microsoft®CoreInfraSvrSteStdCore License/SoftwareAssurancePack Government OLP 16Licenses NoLevel W/OWinServerLicense CoreLic Qualified | K124: Unidad | L124: Und | M124: Producto | N124: N/A | O124: N/A | P124: N/A | Q124: 9GA-00601 | R124: Licencia | S124: 1431.438579 | T124: 1 | U124: 1
A125: Controles Empresariales S.A.S.Categoría 19GA-00602P8702 | B125: 9GA-00602P8702Categoría 1 | D125: Controles Empresariales S.A.S. | E125: 9GA-00602P8702 | F125: 1 | G125: Core Infra Svr Ste Std Core | H125: Core Infra Svr Ste Std Core | I125: N/A | J125: Microsoft®CoreInfraSvrSteStdCore License/SoftwareAssurancePack Government OLP 2Licenses NoLevel W/OWinServerLicense CoreLic Qualified | K125: Unidad | L125: Und | M125: Producto | N125: N/A | O125: N/A | P125: N/A | Q125: 9GA-00602 | R125: Licencia | S125: 179.4151033 | T125: 1 | U125: 1
A126: Controles Empresariales S.A.S.Categoría 19GS-00110P8679 | B126: 9GS-00110P8679Categoría 1 | D126: Controles Empresariales S.A.S. | E126: 9GS-00110P8679 | F126: 1 | G126: Core Infrastructure Svr Ste DC Core | H126: Core Infrastructure Svr Ste DC Core | I126: N/A | J126: Microsoft®CoreInfrastructureSvrSteDCCore License/SoftwareAssurancePack Government OLP 16Licenses NoLevel CoreLic Qualified | K126: Unidad | L126: Und | M126: Producto | N126: N/A | O126: N/A | P126: N/A | Q126: 9GS-00110 | R126: Licencia | S126: 11028.92397 | T126: 1 | U126: 1
A127: Controles Empresariales S.A.S.Categoría 19GS-00111P8685 | B127: 9GS-00111P8685Categoría 1 | D127: Controles Empresariales S.A.S. | E127: 9GS-00111P8685 | F127: 1 | G127: Core Infrastructure Svr Ste DC Core | H127: Core Infrastructure Svr Ste DC Core | I127: N/A | J127: Microsoft®CoreInfrastructureSvrSteDCCore SoftwareAssurance Government OLP 16Licenses NoLevel CoreLic Qualified | K127: Unidad | L127: Und | M127: Producto | N127: N/A | O127: N/A | P127: N/A | Q127: 9GS-00111 | R127: Licencia | S127: 3676.304094 | T127: 1 | U127: 1
A128: Controles Empresariales S.A.S.Categoría 19GS-00112P8682 | B128: 9GS-00112P8682Categoría 1 | D128: Controles Empresariales S.A.S. | E128: 9GS-00112P8682 | F128: 1 | G128: Core Infrastructure Svr Ste DC Core | H128: Core Infrastructure Svr Ste DC Core | I128: N/A | J128: Microsoft®CoreInfrastructureSvrSteDCCore License/SoftwareAssurancePack Government OLP 2Licenses NoLevel CoreLic Qualified | K128: Unidad | L128: Und | M128: Producto | N128: N/A | O128: N/A | P128: N/A | Q128: 9GS-00112 | R128: Licencia | S128: 1379.28655 | T128: 1 | U128: 1
A129: Controles Empresariales S.A.S.Categoría 19GS-00113P8686 | B129: 9GS-00113P8686Categoría 1 | D129: Controles Empresariales S.A.S. | E129: 9GS-00113P8686 | F129: 1 | G129: Core Infrastructure Svr Ste DC Core | H129: Core Infrastructure Svr Ste DC Core | I129: N/A | J129: Microsoft®CoreInfrastructureSvrSteDCCore SoftwareAssurance Government OLP 2Licenses NoLevel CoreLic Qualified | K129: Unidad | L129: Und | M129: Producto | N129: N/A | O129: N/A | P129: N/A | Q129: 9GS-00113 | R129: Licencia | S129: 459.7660819 | T129: 1 | U129: 1
A130: Controles Empresariales S.A.S.Categoría 19GS-00545P8680 | B130: 9GS-00545P8680Categoría 1 | D130: Controles Empresariales S.A.S. | E130: 9GS-00545P8680 | F130: 1 | G130: Core Infrastructure Svr Ste DC Core | H130: Core Infrastructure Svr Ste DC Core | I130: N/A | J130: Microsoft®CoreInfrastructureSvrSteDCCore License/SoftwareAssurancePack Government OLP 16Licenses NoLevel W/OSYSCTRSERVERLICENSE CoreLic Qualified | K130: Unidad | L130: Und | M130: Producto | N130: N/A | O130: N/A | P130: N/A | Q130: 9GS-00545 | R130: Licencia | S130: 8963.567233 | T130: 1 | U130: 1
A131: =D131&"Categoría "&F131&E131 -> Controles Empresariales S.A.S.Categoría 19GS-00546P8683 | B131: =E131&"Categoría "&F131 -> 9GS-00546P8683Categoría 1 | D131: Controles Empresariales S.A.S. | E131: 9GS-00546P8683 | F131: 1 | G131: Core Infrastructure Svr Ste DC Core | H131: Core Infrastructure Svr Ste DC Core | I131: N/A | J131: Microsoft®CoreInfrastructureSvrSteDCCore License/SoftwareAssurancePack Government OLP 2Licenses NoLevel W/OSYSCTRSERVERLICENSE CoreLic Qualified | K131: Unidad | L131: Und | M131: Producto | N131: N/A | O131: N/A | P131: N/A | Q131: 9GS-00546 | R131: Licencia | S131: 1121.064325 | T131: 1 | U131: 1
A132: Controles Empresariales S.A.S.Categoría 19GS-00725P8681 | B132: 9GS-00725P8681Categoría 1 | D132: Controles Empresariales S.A.S. | E132: 9GS-00725P8681 | F132: 1 | G132: Core Infrastructure Svr Ste DC Core | H132: Core Infrastructure Svr Ste DC Core | I132: N/A | J132: Microsoft®CoreInfrastructureSvrSteDCCore License/SoftwareAssurancePack Government OLP 16Licenses NoLevel W/OWinServerLicense CoreLic Qualified | K132: Unidad | L132: Und | M132: Producto | N132: N/A | O132: N/A | P132: N/A | Q132: 9GS-00725 | R132: Licencia | S132: 5741.660714 | T132: 1 | U132: 1
A133: Controles Empresariales S.A.S.Categoría 19GS-00726P8684 | B133: 9GS-00726P8684Categoría 1 | D133: Controles Empresariales S.A.S. | E133: 9GS-00726P8684 | F133: 1 | G133: Core Infrastructure Svr Ste DC Core | H133: Core Infrastructure Svr Ste DC Core | I133: N/A | J133: Microsoft®CoreInfrastructureSvrSteDCCore License/SoftwareAssurancePack Government OLP 2Licenses NoLevel W/OWinServerLicense CoreLic Qualified | K133: Unidad | L133: Und | M133: Producto | N133: N/A | O133: N/A | P133: N/A | Q133: 9GS-00726 | R133: Licencia | S133: 717.9764906 | T133: 1 | U133: 1
A134: Controles Empresariales S.A.S.Categoría 19TX-00209P8781 | B134: 9TX-00209P8781Categoría 1 | D134: Controles Empresariales S.A.S. | E134: 9TX-00209P8781 | F134: 1 | G134: Sys Ctr Ops Mgr Clt Mgmt Lic | H134: Sys Ctr Ops Mgr Clt Mgmt Lic | I134: N/A | J134: Microsoft®SysCtrOpsMgrCltMgmtLic License/SoftwareAssurancePack Government OLP 1License NoLevel PerUsr | K134: Unidad | L134: Und | M134: Producto | N134: N/A | O134: N/A | P134: N/A | Q134: 9TX-00209 | R134: Licencia | S134: 31.94143577 | T134: 1 | U134: 1
A135: Controles Empresariales S.A.S.Categoría 19TX-00226P8783 | B135: 9TX-00226P8783Categoría 1 | D135: Controles Empresariales S.A.S. | E135: 9TX-00226P8783 | F135: 1 | G135: Sys Ctr Ops Mgr Clt Mgmt Lic | H135: Sys Ctr Ops Mgr Clt Mgmt Lic | I135: N/A | J135: Microsoft®SysCtrOpsMgrCltMgmtLic SoftwareAssurance Government OLP 1License NoLevel PerUsr | K135: Unidad | L135: Und | M135: Producto | N135: N/A | O135: N/A | P135: N/A | Q135: 9TX-00226 | R135: Licencia | S135: 10.60812083 | T135: 1 | U135: 1
A136: Controles Empresariales S.A.S.Categoría 19TX-00605P8782 | B136: 9TX-00605P8782Categoría 1 | D136: Controles Empresariales S.A.S. | E136: 9TX-00605P8782 | F136: 1 | G136: Sys Ctr Ops Mgr Clt Mgmt Lic | H136: Sys Ctr Ops Mgr Clt Mgmt Lic | I136: N/A | J136: Microsoft®SysCtrOpsMgrCltMgmtLic SoftwareAssurance Government OLP 1License NoLevel PerOSE | K136: Unidad | L136: Und | M136: Producto | N136: N/A | O136: N/A | P136: N/A | Q136: 9TX-00605 | R136: Licencia | S136: 8.1403 | T136: 1 | U136: 1
A137: Controles Empresariales S.A.S.Categoría 19TX-00606P8780 | B137: 9TX-00606P8780Categoría 1 | D137: Controles Empresariales S.A.S. | E137: 9TX-00606P8780 | F137: 1 | G137: Sys Ctr Ops Mgr Clt Mgmt Lic | H137: Sys Ctr Ops Mgr Clt Mgmt Lic | I137: N/A | J137: Microsoft®SysCtrOpsMgrCltMgmtLic License/SoftwareAssurancePack Government OLP 1License NoLevel PerOSE | K137: Unidad | L137: Und | M137: Producto | N137: N/A | O137: N/A | P137: N/A | Q137: 9TX-00606 | R137: Licencia | S137: 24.54961209 | T137: 1 | U137: 1
A138: Controles Empresariales S.A.S.Categoría 1CE4-00006P8996 | B138: CE4-00006P8996Categoría 1 | D138: Controles Empresariales S.A.S. | E138: CE4-00006P8996 | F138: 1 | G138: Ent Mob and Security E5 Open Add-on | H138: Ent Mob and Security E5 Open Add-on | I138: N/A | J138: Microsoft®EntMobandSecurityE5OpenAdd-on ShrdSvr MonthlySubscriptions-VolumeLicense Government OLP 1License NoLevel AddOn Qualified Annual | K138: Unidad | L138: Und | M138: Producto | N138: N/A | O138: N/A | P138: N/A | Q138: CE4-00006 | R138: Suscripción Anual | S138: 136.421 | T138: 1 | U138: 0
A139: Controles Empresariales S.A.S.Categoría 1CF3-00007P8992 | B139: CF3-00007P8992Categoría 1 | D139: Controles Empresariales S.A.S. | E139: CF3-00007P8992 | F139: 1 | G139: Ent Mob and Security E5 Open | H139: Ent Mob and Security E5 Open | I139: N/A | J139: Microsoft®EntMobandSecurityE5Open ShrdSvr MonthlySubscriptions-VolumeLicense Government OLP 1License NoLevel Qualified Annual | K139: Unidad | L139: Und | M139: Producto | N139: N/A | O139: N/A | P139: N/A | Q139: CF3-00007 | R139: Suscripción Anual | S139: 176.5613815 | T139: 1 | U139: 0
A140: Controles Empresariales S.A.S.Categoría 1D75-01971P7355 | B140: D75-01971P7355Categoría 1 | D140: Controles Empresariales S.A.S. | E140: D75-01971P7355 | F140: 1 | G140: BizTalk Server Standard | H140: BizTalk Server Standard | I140: N/A | J140: Microsoft®BizTalk®ServerStandard License/SoftwareAssurancePack Government OLP 2Licenses NoLevel CoreLic Qualified | K140: Unidad | L140: Und | M140: Producto | N140: N/A | O140: N/A | P140: N/A | Q140: D75-01971 | R140: Licencia | S140: 6892.853795 | T140: 1 | U140: 1
A141: Controles Empresariales S.A.S.Categoría 1D75-01972P7356 | B141: D75-01972P7356Categoría 1 | D141: Controles Empresariales S.A.S. | E141: D75-01972P7356 | F141: 1 | G141: BizTalk Server Standard | H141: BizTalk Server Standard | I141: N/A | J141: Microsoft®BizTalk®ServerStandard SoftwareAssurance Government OLP 2Licenses NoLevel CoreLic Qualified | K141: Unidad | L141: Und | M141: Producto | N141: N/A | O141: N/A | P141: N/A | Q141: D75-01972 | R141: Licencia | S141: 2297.660737 | T141: 1 | U141: 1
A142: Controles Empresariales S.A.S.Categoría 1D75-02372P7348 | B142: D75-02372P7348Categoría 1 | D142: Controles Empresariales S.A.S. | E142: D75-02372P7348 | F142: 1 | G142: BizTalk Server Standard | H142: BizTalk Server Standard | I142: N/A | J142: Microsoft®BizTalk®ServerStandard 2016 Government OLP 2Licenses NoLevel CoreLic Qualified | K142: Unidad | L142: Und | M142: Producto | N142: N/A | O142: N/A | P142: N/A | Q142: D75-02372 | R142: Licencia | S142: 4595.192938 | T142: 1 | U142: 1
A143: Controles Empresariales S.A.S.Categoría 1D86-02331P8851 | B143: D86-02331P8851Categoría 1 | D143: Controles Empresariales S.A.S. | E143: D86-02331P8851 | F143: 1 | G143: Visio Standard | H143: Visio Standard | I143: N/A | J143: Microsoft®Visio®Standard License/SoftwareAssurancePack Government OLP 1License NoLevel | K143: Unidad | L143: Und | M143: Producto | N143: N/A | O143: N/A | P143: N/A | Q143: D86-02331 | R143: Licencia | S143: 356.1753672 | T143: 1 | U143: 1
A144: Controles Empresariales S.A.S.Categoría 1D86-02333P8852 | B144: D86-02333P8852Categoría 1 | D144: Controles Empresariales S.A.S. | E144: D86-02333P8852 | F144: 1 | G144: Visio Standard | H144: Visio Standard | I144: N/A | J144: Microsoft®Visio®Standard SoftwareAssurance Government OLP 1License NoLevel | K144: Unidad | L144: Und | M144: Producto | N144: N/A | O144: N/A | P144: N/A | Q144: D86-02333 | R144: Licencia | S144: 130.7601352 | T144: 1 | U144: 1
A145: Controles Empresariales S.A.S.Categoría 1D87-02285P8848 | B145: D87-02285P8848Categoría 1 | D145: Controles Empresariales S.A.S. | E145: D87-02285P8848 | F145: 1 | G145: Visio Professional | H145: Visio Professional | I145: N/A | J145: Microsoft®Visio®Professional License/SoftwareAssurancePack Government OLP 1License NoLevel | K145: Unidad | L145: Und | M145: Producto | N145: N/A | O145: N/A | P145: N/A | Q145: D87-02285 | R145: Licencia | S145: 689.1227545 | T145: 1 | U145: 1
A146: Controles Empresariales S.A.S.Categoría 1D87-02286P8849 | B146: D87-02286P8849Categoría 1 | D146: Controles Empresariales S.A.S. | E146: D87-02286P8849 | F146: 1 | G146: Visio Professional | H146: Visio Professional | I146: N/A | J146: Microsoft®Visio®Professional SoftwareAssurance Government OLP 1License NoLevel | K146: Unidad | L146: Und | M146: Producto | N146: N/A | O146: N/A | P146: N/A | Q146: D87-02286 | R146: Licencia | S146: 253.0292166 | T146: 1 | U146: 1
A147: Controles Empresariales S.A.S.Categoría 12bcf9fe8-8b65-4fcf-9240-419203fb8cf4P7425 | B147: 2bcf9fe8-8b65-4fcf-9240-419203fb8cf4P7425Categoría 1 | D147: Controles Empresariales S.A.S. | E147: 2bcf9fe8-8b65-4fcf-9240-419203fb8cf4P7425 | F147: 1 | G147: Dynamics | H147: Dynamics | I147: N/A | J147: Dynamics 365 - Additional Production Instance (Qualified Offer) | K147: Unidad | L147: Und | M147: Producto | N147: N/A | O147: N/A | P147: N/A | Q147: 2bcf9fe8-8b65-4fcf-9240-419203fb8cf4 | R147: Suscripción Mensual | S147: 498.022186 | T147: 1 | U147: 0
A148: Controles Empresariales S.A.S.Categoría 1dcd2791c-2af1-4926-b7c0-ef702a4925ff | B148: dcd2791c-2af1-4926-b7c0-ef702a4925ffCategoría 1 | D148: Controles Empresariales S.A.S. | E148: dcd2791c-2af1-4926-b7c0-ef702a4925ff | F148: 1 | G148: Dynamics | H148: Dynamics | I148: N/A | J148: Dyn365 for Sales Professional From CRM Basic (Qualified Offer) (Government Pricing) | K148: Unidad | L148: Und | M148: Producto | N148: N/A | O148: N/A | P148: N/A | Q148: dcd2791c-2af1-4926-b7c0-ef702a4925ff | R148: Suscripción Mensual | S148: 33.45588235 | T148: 1 | U148: 0
A149: Controles Empresariales S.A.S.Categoría 1DW6-00006P8366 | B149: DW6-00006P8366Categoría 1 | D149: Controles Empresariales S.A.S. | E149: DW6-00006P8366 | F149: 1 | G149: Power BI Pro Open | H149: Power BI Pro Open | I149: N/A | J149: Microsoft®PowerBIProOpen ShrdSvr MonthlySubscriptions-VolumeLicense Government OLP 1License NoLevel Qualified Annual | K149: Unidad | L149: Und | M149: Producto | N149: N/A | O149: N/A | P149: N/A | Q149: DW6-00006 | R149: Suscripción Anual | S149: 119.1577819 | T149: 1 | U149: 0
A150: Controles Empresariales S.A.S.Categoría 1d82e1de4-dd2e-4627-9343-ee68c3c8349b | B150: d82e1de4-dd2e-4627-9343-ee68c3c8349bCategoría 1 | D150: Controles Empresariales S.A.S. | E150: d82e1de4-dd2e-4627-9343-ee68c3c8349b | F150: 1 | G150: Dynamics | H150: Dynamics | I150: N/A | J150: Dynamics 365 Unified Operations Plan Cloud Add-on From AX/DPLUser (Qualified Offer) | K150: Unidad | L150: Und | M150: Producto | N150: N/A | O150: N/A | P150: N/A | Q150: d82e1de4-dd2e-4627-9343-ee68c3c8349b | R150: Suscripción Mensual con pago anual | S150: 58.8 | T150: 1 | U150: 0
A151: Controles Empresariales S.A.S.Categoría 1e71f4d6f-a2ea-4e2e-8323-2f1fa88c72a5 | B151: e71f4d6f-a2ea-4e2e-8323-2f1fa88c72a5Categoría 1 | D151: Controles Empresariales S.A.S. | E151: e71f4d6f-a2ea-4e2e-8323-2f1fa88c72a5 | F151: 1 | G151: Dynamics | H151: Dynamics | I151: N/A | J151: Dyn365 for Sales Professional From CRMOL Basic (Qualified Offer) (Government Pricing) | K151: Unidad | L151: Und | M151: Producto | N151: N/A | O151: N/A | P151: N/A | Q151: e71f4d6f-a2ea-4e2e-8323-2f1fa88c72a5 | R151: Suscripción Mensual | S151: 47.79411765 | T151: 1 | U151: 0
A152: Controles Empresariales S.A.S.Categoría 1e7afc5a3-049a-4a0e-b2b0-c8921d1d9b97P7423 | B152: e7afc5a3-049a-4a0e-b2b0-c8921d1d9b97P7423Categoría 1 | D152: Controles Empresariales S.A.S. | E152: e7afc5a3-049a-4a0e-b2b0-c8921d1d9b97P7423 | F152: 1 | G152: Dynamics | H152: Dynamics | I152: N/A | J152: Dynamics 365 Enterprise Edition - Additional Portal (Government Pricing) | K152: Unidad | L152: Und | M152: Producto | N152: N/A | O152: N/A | P152: N/A | Q152: e7afc5a3-049a-4a0e-b2b0-c8921d1d9b97 | R152: Suscripción Mensual | S152: 452.74299 | T152: 1 | U152: 0
A153: Controles Empresariales S.A.S.Categoría 15b2900bc-5067-4c17-99be-1560a8e8e6a1 | B153: 5b2900bc-5067-4c17-99be-1560a8e8e6a1Categoría 1 | D153: Controles Empresariales S.A.S. | E153: 5b2900bc-5067-4c17-99be-1560a8e8e6a1 | F153: 1 | G153: Dynamics | H153: Dynamics | I153: N/A | J153: Dynamics 365 for Talent | K153: Unidad | L153: Und | M153: Producto | N153: N/A | O153: N/A | P153: N/A | Q153: 5b2900bc-5067-4c17-99be-1560a8e8e6a1 | R153: Suscripción Mensual con pago anual | S153: 36.47058824 | T153: 1 | U153: 0
A154: Controles Empresariales S.A.S.Categoría 1EMJ-00129P8044 | B154: EMJ-00129P8044Categoría 1 | D154: Controles Empresariales S.A.S. | E154: EMJ-00129P8044 | F154: 1 | G154: Dyn365 For Team Members | H154: Dyn365 For Team Members | I154: N/A | J154: Microsoft®Dyn365ForTeamMembers License/SoftwareAssurancePack Government OLP 1License NoLevel DvcCAL Qualified | K154: Unidad | L154: Und | M154: Producto | N154: N/A | O154: N/A | P154: N/A | Q154: EMJ-00129 | R154: Licencia | S154: 265.4150979 | T154: 1 | U154: 0
A155: Controles Empresariales S.A.S.Categoría 1EMJ-00130P8046 | B155: EMJ-00130P8046Categoría 1 | D155: Controles Empresariales S.A.S. | E155: EMJ-00130P8046 | F155: 1 | G155: Dyn365 For Team Members | H155: Dyn365 For Team Members | I155: N/A | J155: Microsoft®Dyn365ForTeamMembers License/SoftwareAssurancePack Government OLP 1License NoLevel UsrCAL Qualified | K155: Unidad | L155: Und | M155: Producto | N155: N/A | O155: N/A | P155: N/A | Q155: EMJ-00130 | R155: Licencia | S155: 176.8537698 | T155: 1 | U155: 0
A156: Controles Empresariales S.A.S.Categoría 1EMJ-00131P8047 | B156: EMJ-00131P8047Categoría 1 | D156: Controles Empresariales S.A.S. | E156: EMJ-00131P8047 | F156: 1 | G156: Dyn365 For Team Members | H156: Dyn365 For Team Members | I156: N/A | J156: Microsoft®Dyn365ForTeamMembers SoftwareAssurance Government OLP 1License NoLevel DvcCAL Qualified | K156: Unidad | L156: Und | M156: Producto | N156: N/A | O156: N/A | P156: N/A | Q156: EMJ-00131 | R156: Licencia | S156: 88.43267317 | T156: 1 | U156: 0
A157: Controles Empresariales S.A.S.Categoría 1EMJ-00132P8049 | B157: EMJ-00132P8049Categoría 1 | D157: Controles Empresariales S.A.S. | E157: EMJ-00132P8049 | F157: 1 | G157: Dyn365 For Team Members | H157: Dyn365 For Team Members | I157: N/A | J157: Microsoft®Dyn365ForTeamMembers SoftwareAssurance Government OLP 1License NoLevel UsrCAL Qualified | K157: Unidad | L157: Und | M157: Producto | N157: N/A | O157: N/A | P157: N/A | Q157: EMJ-00132 | R157: Licencia | S157: 58.86548662 | T157: 1 | U157: 0
A158: Controles Empresariales S.A.S.Categoría 1EMJ-00498P8045 | B158: EMJ-00498P8045Categoría 1 | D158: Controles Empresariales S.A.S. | E158: EMJ-00498P8045 | F158: 1 | G158: Dyn365 For Team Members | H158: Dyn365 For Team Members | I158: N/A | J158: Microsoft®Dyn365ForTeamMembers License/SoftwareAssurancePack Government OLP 1License NoLevel QualifiedOffer UsrCAL fromCRMEssentials | K158: Unidad | L158: Und | M158: Producto | N158: N/A | O158: N/A | P158: N/A | Q158: EMJ-00498 | R158: Licencia | S158: 137.8712592 | T158: 1 | U158: 0
A159: Controles Empresariales S.A.S.Categoría 1EMJ-00499P8048 | B159: EMJ-00499P8048Categoría 1 | D159: Controles Empresariales S.A.S. | E159: EMJ-00499P8048 | F159: 1 | G159: Dyn365 For Team Members | H159: Dyn365 For Team Members | I159: N/A | J159: Microsoft®Dyn365ForTeamMembers SoftwareAssurance Government OLP 1License NoLevel QualifiedOffer UsrCAL fromCRMEssentials | K159: Unidad | L159: Und | M159: Producto | N159: N/A | O159: N/A | P159: N/A | Q159: EMJ-00499 | R159: Licencia | S159: 45.8712969 | T159: 1 | U159: 0
A160: Controles Empresariales S.A.S.Categoría 1EMT-00129P7978 | B160: EMT-00129P7978Categoría 1 | D160: Controles Empresariales S.A.S. | E160: EMT-00129P7978 | F160: 1 | G160: Dyn365 For Customer Service | H160: Dyn365 For Customer Service | I160: N/A | J160: Microsoft®Dyn365ForCustomerService License/SoftwareAssurancePack Government OLP 1License NoLevel DvcCAL Qualified | K160: Unidad | L160: Und | M160: Producto | N160: N/A | O160: N/A | P160: N/A | Q160: EMT-00129 | R160: Licencia | S160: 3328.210518 | T160: 1 | U160: 0
A161: Controles Empresariales S.A.S.Categoría 1EMT-00130P7981 | B161: EMT-00130P7981Categoría 1 | D161: Controles Empresariales S.A.S. | E161: EMT-00130P7981 | F161: 1 | G161: Dyn365 For Customer Service | H161: Dyn365 For Customer Service | I161: N/A | J161: Microsoft®Dyn365ForCustomerService License/SoftwareAssurancePack Government OLP 1License NoLevel UsrCAL Qualified | K161: Unidad | L161: Und | M161: Producto | N161: N/A | O161: N/A | P161: N/A | Q161: EMT-00130 | R161: Licencia | S161: 2218.970674 | T161: 1 | U161: 0
A162: Controles Empresariales S.A.S.Categoría 1EMT-00131P7982 | B162: EMT-00131P7982Categoría 1 | D162: Controles Empresariales S.A.S. | E162: EMT-00131P7982 | F162: 1 | G162: Dyn365 For Customer Service | H162: Dyn365 For Customer Service | I162: N/A | J162: Microsoft®Dyn365ForCustomerService SoftwareAssurance Government OLP 1License NoLevel DvcCAL Qualified | K162: Unidad | L162: Und | M162: Producto | N162: N/A | O162: N/A | P162: N/A | Q162: EMT-00131 | R162: Licencia | S162: 1109.356622 | T162: 1 | U162: 0
A163: Controles Empresariales S.A.S.Categoría 1EMT-00132P7986 | B163: EMT-00132P7986Categoría 1 | D163: Controles Empresariales S.A.S. | E163: EMT-00132P7986 | F163: 1 | G163: Dyn365 For Customer Service | H163: Dyn365 For Customer Service | I163: N/A | J163: Microsoft®Dyn365ForCustomerService SoftwareAssurance Government OLP 1License NoLevel UsrCAL Qualified | K163: Unidad | L163: Und | M163: Producto | N163: N/A | O163: N/A | P163: N/A | Q163: EMT-00132 | R163: Licencia | S163: 739.6607493 | T163: 1 | U163: 0
A164: Controles Empresariales S.A.S.Categoría 1EMT-00599P7985 | B164: EMT-00599P7985Categoría 1 | D164: Controles Empresariales S.A.S. | E164: EMT-00599P7985 | F164: 1 | G164: Dyn365 For Customer Service | H164: Dyn365 For Customer Service | I164: N/A | J164: Microsoft®Dyn365ForCustomerService SoftwareAssurance Government OLP 1License NoLevel QualifiedOffer UsrCAL fromCRMPro | K164: Unidad | L164: Und | M164: Producto | N164: N/A | O164: N/A | P164: N/A | Q164: EMT-00599 | R164: Licencia | S164: 443.8479364 | T164: 1 | U164: 0
A165: Controles Empresariales S.A.S.Categoría 1EMT-00638P7984 | B165: EMT-00638P7984Categoría 1 | D165: Controles Empresariales S.A.S. | E165: EMT-00638P7984 | F165: 1 | G165: Dyn365 For Customer Service | H165: Dyn365 For Customer Service | I165: N/A | J165: Microsoft®Dyn365ForCustomerService SoftwareAssurance Government OLP 1License NoLevel QualifiedOffer UsrCAL fromCRMBasic | K165: Unidad | L165: Und | M165: Producto | N165: N/A | O165: N/A | P165: N/A | Q165: EMT-00638 | R165: Licencia | S165: 273.5672199 | T165: 1 | U165: 0
A166: Controles Empresariales S.A.S.Categoría 1EMT-00685P7980 | B166: EMT-00685P7980Categoría 1 | D166: Controles Empresariales S.A.S. | E166: EMT-00685P7980 | F166: 1 | G166: Dyn365 For Customer Service | H166: Dyn365 For Customer Service | I166: N/A | J166: Microsoft®Dyn365ForCustomerService License/SoftwareAssurancePack Government OLP 1License NoLevel QualifiedOffer UsrCAL fromCRMPro | K166: Unidad | L166: Und | M166: Producto | N166: N/A | O166: N/A | P166: N/A | Q166: EMT-00685 | R166: Licencia | S166: 1331.415093 | T166: 1 | U166: 0
A167: Controles Empresariales S.A.S.Categoría 1EMT-00862P7979 | B167: EMT-00862P7979Categoría 1 | D167: Controles Empresariales S.A.S. | E167: EMT-00862P7979 | F167: 1 | G167: Dyn365 For Customer Service | H167: Dyn365 For Customer Service | I167: N/A | J167: Microsoft®Dyn365ForCustomerService License/SoftwareAssurancePack Government OLP 1License NoLevel QualifiedOffer UsrCAL fromCRMBasic | K167: Unidad | L167: Und | M167: Producto | N167: N/A | O167: N/A | P167: N/A | Q167: EMT-00862 | R167: Licencia | S167: 820.9589676 | T167: 1 | U167: 0
A168: Controles Empresariales S.A.S.Categoría 1ENJ-00129P8018 | B168: ENJ-00129P8018Categoría 1 | D168: Controles Empresariales S.A.S. | E168: ENJ-00129P8018 | F168: 1 | G168: Dyn365 For Sales | H168: Dyn365 For Sales | I168: N/A | J168: Microsoft®Dyn365ForSales License/SoftwareAssurancePack Government OLP 1License NoLevel DvcCAL Qualified | K168: Unidad | L168: Und | M168: Producto | N168: N/A | O168: N/A | P168: N/A | Q168: ENJ-00129 | R168: Licencia | S168: 3328.210518 | T168: 1 | U168: 0
A169: Controles Empresariales S.A.S.Categoría 1ENJ-00130P8021 | B169: ENJ-00130P8021Categoría 1 | D169: Controles Empresariales S.A.S. | E169: ENJ-00130P8021 | F169: 1 | G169: Dyn365 For Sales | H169: Dyn365 For Sales | I169: N/A | J169: Microsoft®Dyn365ForSales License/SoftwareAssurancePack Government OLP 1License NoLevel UsrCAL Qualified | K169: Unidad | L169: Und | M169: Producto | N169: N/A | O169: N/A | P169: N/A | Q169: ENJ-00130 | R169: Licencia | S169: 2218.970674 | T169: 1 | U169: 0
A170: Controles Empresariales S.A.S.Categoría 1ENJ-00131P8022 | B170: ENJ-00131P8022Categoría 1 | D170: Controles Empresariales S.A.S. | E170: ENJ-00131P8022 | F170: 1 | G170: Dyn365 For Sales | H170: Dyn365 For Sales | I170: N/A | J170: Microsoft®Dyn365ForSales SoftwareAssurance Government OLP 1License NoLevel DvcCAL Qualified | K170: Unidad | L170: Und | M170: Producto | N170: N/A | O170: N/A | P170: N/A | Q170: ENJ-00131 | R170: Licencia | S170: 1109.356622 | T170: 1 | U170: 0
A171: Controles Empresariales S.A.S.Categoría 1ENJ-00132P8026 | B171: ENJ-00132P8026Categoría 1 | D171: Controles Empresariales S.A.S. | E171: ENJ-00132P8026 | F171: 1 | G171: Dyn365 For Sales | H171: Dyn365 For Sales | I171: N/A | J171: Microsoft®Dyn365ForSales SoftwareAssurance Government OLP 1License NoLevel UsrCAL Qualified | K171: Unidad | L171: Und | M171: Producto | N171: N/A | O171: N/A | P171: N/A | Q171: ENJ-00132 | R171: Licencia | S171: 739.6607493 | T171: 1 | U171: 0
A172: Controles Empresariales S.A.S.Categoría 1ENJ-00750P8020 | B172: ENJ-00750P8020Categoría 1 | D172: Controles Empresariales S.A.S. | E172: ENJ-00750P8020 | F172: 1 | G172: Dyn365 For Sales | H172: Dyn365 For Sales | I172: N/A | J172: Microsoft®Dyn365ForSales License/SoftwareAssurancePack Government OLP 1License NoLevel QualifiedOffer UsrCAL fromCRMPro | K172: Unidad | L172: Und | M172: Producto | N172: N/A | O172: N/A | P172: N/A | Q172: ENJ-00750 | R172: Licencia | S172: 1331.415093 | T172: 1 | U172: 0
A173: Controles Empresariales S.A.S.Categoría 1ENJ-00751P8025 | B173: ENJ-00751P8025Categoría 1 | D173: Controles Empresariales S.A.S. | E173: ENJ-00751P8025 | F173: 1 | G173: Dyn365 For Sales | H173: Dyn365 For Sales | I173: N/A | J173: Microsoft®Dyn365ForSales SoftwareAssurance Government OLP 1License NoLevel QualifiedOffer UsrCAL fromCRMPro | K173: Unidad | L173: Und | M173: Producto | N173: N/A | O173: N/A | P173: N/A | Q173: ENJ-00751 | R173: Licencia | S173: 443.8479364 | T173: 1 | U173: 0
A174: Controles Empresariales S.A.S.Categoría 1ENJ-00808P8019 | B174: ENJ-00808P8019Categoría 1 | D174: Controles Empresariales S.A.S. | E174: ENJ-00808P8019 | F174: 1 | G174: Dyn365 For Sales | H174: Dyn365 For Sales | I174: N/A | J174: Microsoft®Dyn365ForSales License/SoftwareAssurancePack Government OLP 1License NoLevel QualifiedOffer UsrCAL fromCRMBasic | K174: Unidad | L174: Und | M174: Producto | N174: N/A | O174: N/A | P174: N/A | Q174: ENJ-00808 | R174: Licencia | S174: 820.9589676 | T174: 1 | U174: 0
A175: Controles Empresariales S.A.S.Categoría 1ENJ-00809P8024 | B175: ENJ-00809P8024Categoría 1 | D175: Controles Empresariales S.A.S. | E175: ENJ-00809P8024 | F175: 1 | G175: Dyn365 For Sales | H175: Dyn365 For Sales | I175: N/A | J175: Microsoft®Dyn365ForSales SoftwareAssurance Government OLP 1License NoLevel QualifiedOffer UsrCAL fromCRMBasic | K175: Unidad | L175: Und | M175: Producto | N175: N/A | O175: N/A | P175: N/A | Q175: ENJ-00809 | R175: Licencia | S175: 273.5672199 | T175: 1 | U175: 0
A176: Controles Empresariales S.A.S.Categoría 1F52-02136P7343 | B176: F52-02136P7343Categoría 1 | D176: Controles Empresariales S.A.S. | E176: F52-02136P7343 | F176: 1 | G176: BizTalk Server Enterprise | H176: BizTalk Server Enterprise | I176: N/A | J176: Microsoft®BizTalk®ServerEnterprise License/SoftwareAssurancePack Government OLP 2Licenses NoLevel CoreLic Qualified | K176: Unidad | L176: Und | M176: Producto | N176: N/A | O176: N/A | P176: N/A | Q176: F52-02136 | R176: Licencia | S176: 30073.32159 | T176: 1 | U176: 1
A177: Controles Empresariales S.A.S.Categoría 1F52-02137P7344 | B177: F52-02137P7344Categoría 1 | D177: Controles Empresariales S.A.S. | E177: F52-02137P7344 | F177: 1 | G177: BizTalk Server Enterprise | H177: BizTalk Server Enterprise | I177: N/A | J177: Microsoft®BizTalk®ServerEnterprise SoftwareAssurance Government OLP 2Licenses NoLevel CoreLic Qualified | K177: Unidad | L177: Und | M177: Producto | N177: N/A | O177: N/A | P177: N/A | Q177: F52-02137 | R177: Licencia | S177: 10024.47952 | T177: 1 | U177: 1
A178: Controles Empresariales S.A.S.Categoría 1F52-02655P7333 | B178: F52-02655P7333Categoría 1 | D178: Controles Empresariales S.A.S. | E178: F52-02655P7333 | F178: 1 | G178: BizTalk Server Enterprise | H178: BizTalk Server Enterprise | I178: N/A | J178: Microsoft®BizTalk®ServerEnterprise 2016 Government OLP 2Licenses NoLevel CoreLic Qualified | K178: Unidad | L178: Und | M178: Producto | N178: N/A | O178: N/A | P178: N/A | Q178: F52-02655 | R178: Licencia | S178: 20048.84208 | T178: 1 | U178: 1
A179: Controles Empresariales S.A.S.Categoría 13396e762-af96-42f1-bea4-5c97a1efa94fP7422 | B179: 3396e762-af96-42f1-bea4-5c97a1efa94fP7422Categoría 1 | D179: Controles Empresariales S.A.S. | E179: 3396e762-af96-42f1-bea4-5c97a1efa94fP7422 | F179: 1 | G179: Dynamics | H179: Dynamics | I179: N/A | J179: Dynamics 365 - Additional Non-Production Instance (Qualified Offer) | K179: Unidad | L179: Und | M179: Producto | N179: N/A | O179: N/A | P179: N/A | Q179: 3396e762-af96-42f1-bea4-5c97a1efa94f | R179: Suscripción Mensual | S179: 135.827794 | T179: 1 | U179: 0
A180: Controles Empresariales S.A.S.Categoría 11e8bbd2f-ad7e-4105-b140-66f475458bb8P7424 | B180: 1e8bbd2f-ad7e-4105-b140-66f475458bb8P7424Categoría 1 | D180: Controles Empresariales S.A.S. | E180: 1e8bbd2f-ad7e-4105-b140-66f475458bb8P7424 | F180: 1 | G180: Dynamics | H180: Dynamics | I180: N/A | J180: Dynamics 365 - Additional Portal Page Views | K180: Unidad | L180: Und | M180: Producto | N180: N/A | O180: N/A | P180: N/A | Q180: 1e8bbd2f-ad7e-4105-b140-66f475458bb8 | R180: Suscripción Mensual | S180: 45.279196 | T180: 1 | U180: 0
A181: Controles Empresariales S.A.S.Categoría 1FQC-09478P9225 | B181: FQC-09478P9225Categoría 1 | D181: Controles Empresariales S.A.S. | E181: FQC-09478P9225 | F181: 1 | G181: Win Pro | H181: Win Pro | I181: N/A | J181: Microsoft®WindowsProfessional 10 Sngl OLP 1License NoLevel Legalization GetGenuine | K181: Unidad | L181: Und | M181: Producto | N181: N/A | O181: N/A | P181: N/A | Q181: FQC-09478 | R181: Licencia | S181: 195.2631 | T181: 1 | U181: 1
A182: Controles Empresariales S.A.S.Categoría 1FQC-09543P9226 | B182: FQC-09543P9226Categoría 1 | D182: Controles Empresariales S.A.S. | E182: FQC-09543P9226 | F182: 1 | G182: Win Pro | H182: Win Pro | I182: N/A | J182: Microsoft®WindowsProfessional 10 Upgrade Government OLP 1License NoLevel | K182: Unidad | L182: Und | M182: Producto | N182: N/A | O182: N/A | P182: N/A | Q182: FQC-09543 | R182: Licencia | S182: 169.0642288 | T182: 1 | U182: 1
A183: Controles Empresariales S.A.S.Categoría 1FTH-00006P8316 | B183: FTH-00006P8316Categoría 1 | D183: Controles Empresariales S.A.S. | E183: FTH-00006P8316 | F183: 1 | G183: O365 Adv Threat Protect Plan 2 Open | H183: O365 Adv Threat Protect Plan 2 Open | I183: N/A | J183: Microsoft®O365AdvThreatProtectPlan2Open ShrdSvr MonthlySubscriptions-VolumeLicense Government OLP 1License NoLevel Qualified Annual | K183: Unidad | L183: Und | M183: Producto | N183: N/A | O183: N/A | P183: N/A | Q183: FTH-00006 | R183: Suscripción Anual | S183: 95.01406207 | T183: 1 | U183: 0
A184: Controles Empresariales S.A.S.Categoría 1G3S-00505P9249 | B184: G3S-00505P9249Categoría 1 | D184: Controles Empresariales S.A.S. | E184: G3S-00505P9249 | F184: 1 | G184: Windows Server Essentials | H184: Windows Server Essentials | I184: N/A | J184: Microsoft®WindowsServerEssentials License/SoftwareAssurancePack Government OLP 1License NoLevel | K184: Unidad | L184: Und | M184: Producto | N184: N/A | O184: N/A | P184: N/A | Q184: G3S-00505 | R184: Licencia | S184: 679.3566747 | T184: 1 | U184: 1
A185: Controles Empresariales S.A.S.Categoría 1G3S-00506P9250 | B185: G3S-00506P9250Categoría 1 | D185: Controles Empresariales S.A.S. | E185: G3S-00506P9250 | F185: 1 | G185: Windows Server Essentials | H185: Windows Server Essentials | I185: N/A | J185: Microsoft®WindowsServerEssentials SoftwareAssurance Government OLP 1License NoLevel | K185: Unidad | L185: Und | M185: Producto | N185: N/A | O185: N/A | P185: N/A | Q185: G3S-00506 | R185: Licencia | S185: 226.40926 | T185: 1 | U185: 1
A186: Controles Empresariales S.A.S.Categoría 1GLX-00002P8052 | B186: GLX-00002P8052Categoría 1 | D186: Controles Empresariales S.A.S. | E186: GLX-00002P8052 | F186: 1 | G186: Dyn365 Pro Direct Support Open | H186: Dyn365 Pro Direct Support Open | I186: N/A | J186: Microsoft®Dyn365ProDirectSupportOpen ShrdSvr MonthlySubscriptions-VolumeLicense Government OLP 1License NoLevel PerUsr FORAPPS/CEPL/UNIOPSPL Annual | K186: Unidad | L186: Und | M186: Producto | N186: N/A | O186: N/A | P186: N/A | Q186: GLX-00002 | R186: Suscripción Anual | S186: 126.3156818 | T186: 1 | U186: 0
A187: Controles Empresariales S.A.S.Categoría 1GMG-00004P7642 | B187: GMG-00004P7642Categoría 1 | D187: Controles Empresariales S.A.S. | E187: GMG-00004P7642 | F187: 1 | G187: Dyn365E CstEng Addl DBStor Open | H187: Dyn365E CstEng Addl DBStor Open | I187: N/A | J187: Microsoft®Dyn365ECstEngAddlDBStorOpen ShrdSvr MonthlySubscriptions-VolumeLicense Government OLP 1License NoLevel AddOn ExtraStorage1GB Annual | K187: Unidad | L187: Und | M187: Producto | N187: N/A | O187: N/A | P187: N/A | Q187: GMG-00004 | R187: Suscripción Anual | S187: 70.17534091 | T187: 1 | U187: 0
A188: Controles Empresariales S.A.S.Categoría 1GMK-00004P7639 | B188: GMK-00004P7639Categoría 1 | D188: Controles Empresariales S.A.S. | E188: GMK-00004P7639 | F188: 1 | G188: Dyn365E CstEng Addl Portal Open | H188: Dyn365E CstEng Addl Portal Open | I188: N/A | J188: Microsoft®Dyn365ECstEngAddlPortalOpen ShrdSvr MonthlySubscriptions-VolumeLicense Government OLP 1License NoLevel AddOn Annual | K188: Unidad | L188: Und | M188: Producto | N188: N/A | O188: N/A | P188: N/A | Q188: GMK-00004 | R188: Suscripción Anual | S188: 7017.54375 | T188: 1 | U188: 0
A189: Controles Empresariales S.A.S.Categoría 1GMK-00004P7646 | B189: GMK-00004P7646Categoría 1 | D189: Controles Empresariales S.A.S. | E189: GMK-00004P7646 | F189: 1 | G189: Dyn365E CstEng Addl Portal Open | H189: Dyn365E CstEng Addl Portal Open | I189: N/A | J189: Microsoft®Dyn365ECstEngAddlPortalOpen ShrdSvr MonthlySubscriptions-VolumeLicense Government OLP 1License NoLevel AddOn Annual | K189: Unidad | L189: Und | M189: Producto | N189: N/A | O189: N/A | P189: N/A | Q189: GMK-00004 | R189: Suscripción Anual | S189: 7894.727273 | T189: 1 | U189: 0
A190: Controles Empresariales S.A.S.Categoría 1GMP-00004P7640 | B190: GMP-00004P7640Categoría 1 | D190: Controles Empresariales S.A.S. | E190: GMP-00004P7640 | F190: 1 | G190: Dyn365E CstEng Addl PtPgVw Open | H190: Dyn365E CstEng Addl PtPgVw Open | I190: N/A | J190: Microsoft®Dyn365ECstEngAddlPtPgVwOpen ShrdSvr MonthlySubscriptions-VolumeLicense Government OLP 1License NoLevel AddOn Annual | K190: Unidad | L190: Und | M190: Producto | N190: N/A | O190: N/A | P190: N/A | Q190: GMP-00004 | R190: Suscripción Anual | S190: 701.7543182 | T190: 1 | U190: 0
A191: Controles Empresariales S.A.S.Categoría 1GMP-00004P7650 | B191: GMP-00004P7650Categoría 1 | D191: Controles Empresariales S.A.S. | E191: GMP-00004P7650 | F191: 1 | G191: Dyn365E CstEng Addl PtPgVw Open | H191: Dyn365E CstEng Addl PtPgVw Open | I191: N/A | J191: Microsoft®Dyn365ECstEngAddlPtPgVwOpen ShrdSvr MonthlySubscriptions-VolumeLicense Government OLP 1License NoLevel AddOn Annual | K191: Unidad | L191: Und | M191: Producto | N191: N/A | O191: N/A | P191: N/A | Q191: GMP-00004 | R191: Suscripción Anual | S191: 789.4659091 | T191: 1 | U191: 0
A192: Controles Empresariales S.A.S.Categoría 1GMS-00007P7751 | B192: GMS-00007P7751Categoría 1 | D192: Controles Empresariales S.A.S. | E192: GMS-00007P7751 | F192: 1 | G192: Dyn365E for Cust Serv AddOn Open | H192: Dyn365E for Cust Serv AddOn Open | I192: N/A | J192: Microsoft®Dyn365EforCustServAddOnOpen ShrdSvr MonthlySubscriptions-VolumeLicense Government OLP 1License NoLevel PerDvc Annual | K192: Unidad | L192: Und | M192: Producto | N192: N/A | O192: N/A | P192: N/A | Q192: GMS-00007 | R192: Suscripción Anual | S192: 2035.087614 | T192: 1 | U192: 0
A193: Controles Empresariales S.A.S.Categoría 1GMS-00008P7753 | B193: GMS-00008P7753Categoría 1 | D193: Controles Empresariales S.A.S. | E193: GMS-00008P7753 | F193: 1 | G193: Dyn365E for Cust Serv AddOn Open | H193: Dyn365E for Cust Serv AddOn Open | I193: N/A | J193: Microsoft®Dyn365EforCustServAddOnOpen ShrdSvr MonthlySubscriptions-VolumeLicense Government OLP 1License NoLevel PerUsr Annual | K193: Unidad | L193: Und | M193: Producto | N193: N/A | O193: N/A | P193: N/A | Q193: GMS-00008 | R193: Suscripción Anual | S193: 1333.333295 | T193: 1 | U193: 0
A194: Controles Empresariales S.A.S.Categoría 1GMS-00014P7756 | B194: GMS-00014P7756Categoría 1 | D194: Controles Empresariales S.A.S. | E194: GMS-00014P7756 | F194: 1 | G194: Dyn365E for Cust Serv AddOn Open | H194: Dyn365E for Cust Serv AddOn Open | I194: N/A | J194: Microsoft®Dyn365EforCustServAddOnOpen ShrdSvr MonthlySubscriptions-VolumeLicense Government OLP 1Lic NoLevel QualifiedOffer PerUsr CRMProtoO365 Annual | K194: Unidad | L194: Und | M194: Producto | N194: N/A | O194: N/A | P194: N/A | Q194: GMS-00014 | R194: Suscripción Anual | S194: 722.807 | T194: 1 | U194: 0
A195: =D195&"Categoría "&F195&E195 -> Controles Empresariales S.A.S.Categoría 1GMS-00020P7752 | B195: =E195&"Categoría "&F195 -> GMS-00020P7752Categoría 1 | D195: Controles Empresariales S.A.S. | E195: GMS-00020P7752 | F195: 1 | G195: Dyn365E for Cust Serv AddOn Open | H195: Dyn365E for Cust Serv AddOn Open | I195: N/A | J195: Microsoft®Dyn365EforCustServAddOnOpen ShrdSvr MonthlySubscriptions-VolumeLicense Government OLP 1License NoLevel PerDvc toCustService Annual | K195: Unidad | L195: Und | M195: Producto | N195: N/A | O195: N/A | P195: N/A | Q195: GMS-00020 | R195: Suscripción Anual | S195: 1120.842032 | T195: 1 | U195: 0
A196: Controles Empresariales S.A.S.Categoría 1GMS-00021P7754 | B196: GMS-00021P7754Categoría 1 | D196: Controles Empresariales S.A.S. | E196: GMS-00021P7754 | F196: 1 | G196: Dyn365E for Cust Serv AddOn Open | H196: Dyn365E for Cust Serv AddOn Open | I196: N/A | J196: Microsoft®Dyn365EforCustServAddOnOpen ShrdSvr MonthlySubscriptions-VolumeLicense Government OLP 1License NoLevel PerUsr toCustService Annual | K196: Unidad | L196: Und | M196: Producto | N196: N/A | O196: N/A | P196: N/A | Q196: GMS-00021 | R196: Suscripción Anual | S196: 727.2981878 | T196: 1 | U196: 0
A197: Controles Empresariales S.A.S.Categoría 1GMS-00024P7755 | B197: GMS-00024P7755Categoría 1 | D197: Controles Empresariales S.A.S. | E197: GMS-00024P7755 | F197: 1 | G197: Dyn365E for Cust Serv AddOn Open | H197: Dyn365E for Cust Serv AddOn Open | I197: N/A | J197: Microsoft®Dyn365EforCustServAddOnOpen ShrdSvr MonthlySubscriptions-VolumeLicense Government OLP 1Lic NoLevel QualifiedOffer AddOn toCRMBasic Annual | K197: Unidad | L197: Und | M197: Producto | N197: N/A | O197: N/A | P197: N/A | Q197: GMS-00024 | R197: Suscripción Anual | S197: 397.1928867 | T197: 1 | U197: 0
A198: Controles Empresariales S.A.S.Categoría 1GMV-00004P7779 | B198: GMV-00004P7779Categoría 1 | D198: Controles Empresariales S.A.S. | E198: GMV-00004P7779 | F198: 1 | G198: Dyn365E for Cust Serv FromSA Open | H198: Dyn365E for Cust Serv FromSA Open | I198: N/A | J198: Microsoft®Dyn365EforCustServFromSAOpen ShrdSvr MonthlySubscriptions-VolumeLicense Government OLP 1Lic NL QualifiedOffer PerUsr fromCRMBasic Annual | K198: Unidad | L198: Und | M198: Producto | N198: N/A | O198: N/A | P198: N/A | Q198: GMV-00004 | R198: Suscripción Anual | S198: 491.2280682 | T198: 1 | U198: 0
A199: Controles Empresariales S.A.S.Categoría 1GMV-00012P7777 | B199: GMV-00012P7777Categoría 1 | D199: Controles Empresariales S.A.S. | E199: GMV-00012P7777 | F199: 1 | G199: Dyn365E for Cust Serv FromSA Open | H199: Dyn365E for Cust Serv FromSA Open | I199: N/A | J199: Microsoft®Dyn365EforCustServFromSAOpen ShrdSvr MonthlySubscriptions-VolumeLicense Government OLP 1License NoLevel PerDvc Annual | K199: Unidad | L199: Und | M199: Producto | N199: N/A | O199: N/A | P199: N/A | Q199: GMV-00012 | R199: Suscripción Anual | S199: 1729.824545 | T199: 1 | U199: 0
A200: Controles Empresariales S.A.S.Categoría 1GMV-00013P7778 | B200: GMV-00013P7778Categoría 1 | D200: Controles Empresariales S.A.S. | E200: GMV-00013P7778 | F200: 1 | G200: Dyn365E for Cust Serv FromSA Open | H200: Dyn365E for Cust Serv FromSA Open | I200: N/A | J200: Microsoft®Dyn365EforCustServFromSAOpen ShrdSvr MonthlySubscriptions-VolumeLicense Government OLP 1License NoLevel PerUsr Annual | K200: Unidad | L200: Und | M200: Producto | N200: N/A | O200: N/A | P200: N/A | Q200: GMV-00013 | R200: Suscripción Anual | S200: 1133.333295 | T200: 1 | U200: 0
... 4300 more rows

Sheet ProXCat (hidden)
A3: Etiquetas de fila
A4: 1
A5: Controles Empresariales S.A.S.
A6: The Best Experience in Technology S.A
A7: UT Soft-IG
A8: UT Soluciones Microsoft 2017
A9: Total 1
A10: 2
A11: Controles Empresariales S.A.S.
A12: Dell Colombia INC
A13: The Best Experience in Technology S.A
A14: UT Soft-IG
A15: UT Soluciones Microsoft 2017
A16: Total 2
A17: 3
A18: Controles Empresariales S.A.S.
A19: UT Soft-IG
A20: UT Soluciones Microsoft 2017
A21: Total 3
A22: 4
A23: Controles Empresariales S.A.S.
A24: UT Soft-IG
A25: Total 4
A26: 5
A27: Controles Empresariales S.A.S.
A28: UT Soft-IG
A29: Vision Software S.A.S.
A30: Total 5
A31: 6
A32: Controles Empresariales S.A.S.
A33: The Best Experience in Technology S.A
A34: UT Soft-IG
A35: UT Soluciones Microsoft 2017
A36: Total 6
A37: 7
A38: Controles Empresariales S.A.S.
A39: The Best Experience in Technology S.A
A40: UT Soft-IG
A41: UT Soluciones Microsoft 2017
A42: Vision Software S.A.S.
A43: Total 7
A44: Total general

Sheet Cuadro Totales (hidden)
A1: Precio Unitario | B1: Precio Unitario + Gravamen | C1: Subtotal | D1: IVA | E1: Precio Total
D3: Valor Total | E3: =SUM(E2) -> 0
A8: Precio Unitario | B8: Precio Unitario + Gravamen | C8: Descuento adicional | D8: Precio con Descuento | E8: Subtotal | F8: IVA | G8: Precio Total
F10: Valor Total | G10: =SUM(G9) -> 0
A13: Servicios Azure
A14: Subtotal | B14: IVA | C14: Precio Total

Sheet Listas (hidden)
A1: Categoria | B1: Zona | C1: Marca | D1: ProductoInicial | E1: Producto | F1: Proveedores
A2: Categoría 1 | D2: 125-00110 | F2: Controles Empresariales S.A.S.
A3: Categoría 2 | D3: 126-00156 | F3: UT Soft-IG
A4: Categoría 3 | D4: 228-04437 | F4: Vision Software S.A.S.
A5: Categoría 4 | D5: 2FJ-00001FA
A6: Categoría 5 | D6: 2FJ-00001FB
A7: Categoría 6 | D7: 2FJ-00001FC
A8: Categoría 7 | D8: 2FJ-00001FD
D9: 2UJ-00001FA
D10: 2UJ-00001FB
D11: 2UJ-00001FC
D12: 2UJ-00001FD
D13: 2UJ-00003FA
D14: 2UJ-00003FB
D15: 2UJ-00003FC
D16: 2UJ-00003FD
D17: 2UJ-00004FA
D18: 2UJ-00004FB
D19: 2UJ-00004FC
D20: 2UJ-00004FD
D21: 312-02177
D22: 359-00765ANL
D23: 359-00765NL
D24: 381-01587
D25: 395-02412
D26: 395-03039
D27: 3ND-00524
D28: 3VU-00043
D29: 3ZK-00193
D30: 5HU-00215
D31: 6VC-01251ANL
D32: 6VC-01251NL
D33: 6XC-00298
D34: 6YH-00575
D35: 6ZH-00395
D36: 76A-00025FA
D37: 76A-00025FB
D38: 76A-00025FC
D39: 76A-00025FD
D40: 76A-00043FA
D41: 76A-00043FB
D42: 76A-00043FC
D43: 76A-00043FD
D44: 76N-02345
D45: 77D-00110
D46: 7AH-00281
D47: 7JQ-00341
D48: 7JQ-00448
D49: 7NQ-00302
D50: 7VC-00137
D51: 9EA-00039
D52: 9EA-00271
D53: 9EA-00274
D54: 9EA-00279
D55: 9EM-00265
D56: 9EM-00562
D57: 9EN-00193
D58: 9EN-00494
D59: 9EP-00037
D60: 9EP-00201
D61: 9EP-00204
D62: 9EP-00209
D63: 9GA-00006
D64: 9GA-00308
D65: 9GS-00128
D66: 9GS-00131
D67: 9GS-00136
D68: 9GS-00495
D69: 9ST-00091
D70: 9TX-00635
D71: D75-01979
D72: D75-01980
D73: D75-02389
D74: D87-01057ANL
D75: D87-01057NL
D76: EMJ-00151
D77: EMT-00151
D78: EMT-00429
D79: ENJ-00151
D80: ENJ-00565
D81: F52-02144
D82: F52-02281
D83: F52-02282
D84: F52-02672
D85: G3S-00530
D86: GRK-00004
D87: GRK-00035
D88: GRL-00004
D89: GRL-00010
D90: GRM-00004
D91: GRN-00004
D92: H04-00232
D93: H05-00176
D94: H21-00419
D95: H22-00479
D96: H30-00237ANL
D97: H30-00237NL
D98: H5T-00003
D99: H5T-00014
D100: H5T-00017
D101: H5T-00020
D102: HJA-00774
D103: HJA-01113
D104: IT-MS-CP-GE-05_1
D105: IT-MS-CP-GE-05_10
D106: IT-MS-CP-GE-05_11
D107: IT-MS-CP-GE-05_112
D108: IT-MS-CP-GE-05_113
D109: IT-MS-CP-GE-05_114
D110: IT-MS-CP-GE-05_115
D111: IT-MS-CP-GE-05_116
D112: IT-MS-CP-GE-05_117
D113: IT-MS-CP-GE-05_118
D114: IT-MS-CP-GE-05_119
D115: IT-MS-CP-GE-05_12
D116: IT-MS-CP-GE-05_120
D117: IT-MS-CP-GE-05_121
D118: IT-MS-CP-GE-05_122
D119: IT-MS-CP-GE-05_123
D120: IT-MS-CP-GE-05_172
D121: IT-MS-CP-GE-05_173
D122: IT-MS-CP-GE-05_174
D123: IT-MS-CP-GE-05_175
D124: IT-MS-CP-GE-05_176
D125: IT-MS-CP-GE-05_177
D126: IT-MS-CP-GE-05_178
D127: IT-MS-CP-GE-05_179
D128: IT-MS-CP-GE-05_180
D129: IT-MS-CP-GE-05_181
D130: IT-MS-CP-GE-05_182
D131: IT-MS-CP-GE-05_183
D132: IT-MS-CP-GE-05_2
D133: IT-MS-CP-GE-05_232
D134: IT-MS-CP-GE-05_233
D135: IT-MS-CP-GE-05_234
D136: IT-MS-CP-GE-05_235
D137: IT-MS-CP-GE-05_236
D138: IT-MS-CP-GE-05_237
D139: IT-MS-CP-GE-05_238
D140: IT-MS-CP-GE-05_239
D141: IT-MS-CP-GE-05_240
D142: IT-MS-CP-GE-05_241
D143: IT-MS-CP-GE-05_242
D144: IT-MS-CP-GE-05_243
D145: IT-MS-CP-GE-05_3
D146: IT-MS-CP-GE-05_4
D147: IT-MS-CP-GE-05_5
D148: IT-MS-CP-GE-05_6
D149: IT-MS-CP-GE-05_7
D150: IT-MS-CP-GE-05_8
D151: IT-MS-CP-GE-05_9
D152: IT-MS-CP-O-05_13
D153: IT-MS-CP-O-05_14
D154: IT-MS-CP-O-05_15
D155: IT-MS-CP-O-05_16
D156: IT-MS-CP-O-05_17
D157: IT-MS-CP-O-05_18
D158: IT-MS-CP-O-05_19
D159: IT-MS-CP-O-05_20
D160: IT-MS-CP-O-05_21
D161: IT-MS-CP-O-05_22
D162: IT-MS-CP-O-05_23
D163: IT-MS-CP-O-05_24
D164: IT-MS-CP-O365-05_25
D165: IT-MS-CP-O365-05_26
D166: IT-MS-CP-O365-05_27
D167: IT-MS-CP-O365-05_28
D168: IT-MS-CP-O365-05_29
D169: IT-MS-CP-O365-05_30
D170: IT-MS-CP-O365-05_31
D171: IT-MS-CP-O365-05_32
D172: IT-MS-CP-O365-05_33
D173: IT-MS-CP-O365-05_34
D174: IT-MS-CP-O365-05_35
D175: IT-MS-CP-O365-05_36
D176: IT-MS-CU-FI-05-01_37
D177: IT-MS-CU-FI-05-01_38
D178: IT-MS-CU-FI-05-01_39
D179: IT-MS-CU-FI-05-01_40
D180: IT-MS-CU-FI-05-01_41
D181: IT-MS-CU-FI-05-01_42
D182: IT-MS-CU-FI-05-02_43
D183: IT-MS-CU-FI-05-02_44
D184: IT-MS-CU-FI-05-02_45
D185: IT-MS-CU-FI-05-02_46
D186: IT-MS-CU-FI-05-02_47
D187: IT-MS-CU-FI-05-02_48
D188: IT-MS-CU-TA-05-01_49
D189: IT-MS-CU-TA-05-01_50
D190: IT-MS-CU-TA-05-01_51
D191: IT-MS-CU-TA-05-01_52
D192: IT-MS-CU-TA-05-01_53
D193: IT-MS-CU-TA-05-01_54
D194: IT-MS-CU-TA-05-02_55
D195: IT-MS-CU-TA-05-02_56
D196: IT-MS-CU-TA-05-02_57
D197: IT-MS-CU-TA-05-02_58
D198: IT-MS-CU-TA-05-02_59
D199: IT-MS-CU-TA-05-02_60
D200: IT-MS-GC-05_61
... 918 more rows

Sheet minimo (hidden)
C3: Etiquetas de fila | D3: Suma de total
C4: UT Soft-IG | D4: 80523.96
C5: Controles Empresariales S.A.S. | D5: 85530.9
C6: Vision Software S.A.S. | D6: 113762.32
C7: Total general | D7: 279817.18

Sheet temp (hidden)
A1: LLAVE | B1: TEMP1 | C1: TEMP2 | D1: PROVEEDOR | E1: Código matriz Colombia Compra Eficiente | F1: categoria | G1: Familia | H1: Familia CCE | I1: Parametrización de los Servicios | J1: Nombre Producto | K1: Unidad de Medida | L1: Unidad TVEC | M1: Tipo | N1: Zona | O1: Asistencia | P1: Perfil | Q1: Número de parte | R1: Forma de Pago | S1: Precio | T1: Activo | U1: IVA | V1: cant | W1: valor base | X1: valor con gravamenes | Y1: total
A2: Controles Empresariales S.A.S.Categoría 56VC-01251ANL | B2: 6VC-01251ANLCategoría 5 | D2: Controles Empresariales S.A.S. | E2: 6VC-01251ANL | F2: 5 | G2: Windows Remote | H2: Windows Remote | I2: NA | J2: Microsoft®WinRmtDsktpSvcsCAL AllLng License/SoftwareAssurancePack MVL 1License DvcCAL Additional Product No level | K2: Unidad | L2: Und | M2: Producto | N2: N/A | O2: N/A | P2: N/A | Q2: 6VC-01251 | R2: Suscripción Anual | S2: 9.6 | T2: 1 | U2: 1 | V2: =SUMIF(ResumenCotizacion!$C:$C,E2,ResumenCotizacion!$P:$P) -> 300 | W2: =S2 -> 9.6 | X2: =ROUND(W2/(1-VLOOKUP("Total porcentaje:",ResumenCotizacion!$F:$H,3,0)),2) -> 9.96 | Y2: =V2*X2 -> 2988
A3: Controles Empresariales S.A.S.Categoría 57JQ-00341 | B3: 7JQ-00341Categoría 5 | D3: Controles Empresariales S.A.S. | E3: 7JQ-00341 | F3: 5 | G3: SQL server | H3: SQL server | I3: NA | J3: Microsoft®SQLSvrEnterpriseCore AllLng License/SoftwareAssurancePack MVL 2Licenses CoreLic Additional Product No level | K3: Unidad | L3: Und | M3: Producto | N3: N/A | O3: N/A | P3: N/A | Q3: 7JQ-00341 | R3: Suscripción Anual | S3: 1308.141176 | T3: 1 | U3: 1 | V3: =SUMIF(ResumenCotizacion!$C:$C,E3,ResumenCotizacion!$P:$P) -> 2 | W3: =S3 -> 1308.141176 | X3: =ROUND(W3/(1-VLOOKUP("Total porcentaje:",ResumenCotizacion!$F:$H,3,0)),2) -> 1356.99 | Y3: =V3*X3 -> 2713.98
A4: Controles Empresariales S.A.S.Categoría 59EM-00562 | B4: 9EM-00562Categoría 5 | D4: Controles Empresariales S.A.S. | E4: 9EM-00562 | F4: 5 | G4: Windows | H4: Windows | I4: NA | J4: Microsoft®WindowsServerSTDCORE AllLng License/SoftwareAssurancePack MVL 2Licenses CoreLic Additional Product No level | K4: Unidad | L4: Und | M4: Producto | N4: N/A | O4: N/A | P4: N/A | Q4: 9EM-00562 | R4: Suscripción Anual | S4: 6.352941176 | T4: 1 | U4: 1 | V4: =SUMIF(ResumenCotizacion!$C:$C,E4,ResumenCotizacion!$P:$P) -> 200 | W4: 6.352941176 | X4: =ROUND(W4/(1-VLOOKUP("Total porcentaje:",ResumenCotizacion!$F:$H,3,0)),2) -> 6.59 | Y4: 1318
A5: Controles Empresariales S.A.S.Categoría 5D87-01057ANL | B5: D87-01057ANLCategoría 5 | D5: Controles Empresariales S.A.S. | E5: D87-01057ANL | F5: 5 | G5: Visio | H5: Visio | I5: NA | J5: Microsoft®Visio®Professional AllLng License/SoftwareAssurancePack MVL 1License Additional Product No level | K5: Unidad | L5: Und | M5: Producto | N5: N/A | O5: N/A | P5: N/A | Q5: D87-01057 | R5: Suscripción Anual | S5: 53.64705882 | T5: 1 | U5: 1 | V5: =SUMIF(ResumenCotizacion!$C:$C,E5,ResumenCotizacion!$P:$P) -> 60 | W5: 53.64705882 | X5: =ROUND(W5/(1-VLOOKUP("Total porcentaje:",ResumenCotizacion!$F:$H,3,0)),2) -> 55.65 | Y5: 3339
A6: Controles Empresariales S.A.S.Categoría 5H30-00237ANL | B6: H30-00237ANLCategoría 5 | D6: Controles Empresariales S.A.S. | E6: H30-00237ANL | F6: 5 | G6: Project | H6: Project | I6: NA | J6: Microsoft®ProjectProfessional AllLng License/SoftwareAssurancePack MVL 1License w/1ProjectSvrCAL Additional Product No level | K6: Unidad | L6: Und | M6: Producto | N6: N/A | O6: N/A | P6: N/A | Q6: H30-00237 | R6: Suscripción Anual | S6: 62.11764706 | T6: 1 | U6: 1 | V6: =SUMIF(ResumenCotizacion!$C:$C,E6,ResumenCotizacion!$P:$P) -> 60 | W6: 62.11764706 | X6: =ROUND(W6/(1-VLOOKUP("Total porcentaje:",ResumenCotizacion!$F:$H,3,0)),2) -> 64.44 | Y6: 3866.4
A7: Controles Empresariales S.A.S.Categoría 5R18-00095 | B7: R18-00095Categoría 5 | D7: Controles Empresariales S.A.S. | E7: R18-00095 | F7: 5 | G7: Windows | H7: Windows | I7: NA | J7: Microsoft®Windows®ServerCAL AllLng License/SoftwareAssurancePack MVL 1License DvcCAL Faculty No level | K7: Unidad | L7: Und | M7: Producto | N7: N/A | O7: N/A | P7: N/A | Q7: R18-00095 | R7: Suscripción Anual | S7: 2.682352941 | T7: 1 | U7: 1 | V7: =SUMIF(ResumenCotizacion!$C:$C,E7,ResumenCotizacion!$P:$P) -> 1084 | W7: 2.682352941 | X7: =ROUND(W7/(1-VLOOKUP("Total porcentaje:",ResumenCotizacion!$F:$H,3,0)),2) -> 2.78 | Y7: 3013.52
A8: UT Soft-IGCategoría 56VC-01251ANL | B8: 6VC-01251ANLCategoría 5 | D8: UT Soft-IG | E8: 6VC-01251ANL | F8: 5 | G8: Windows Remote | H8: Windows Remote | I8: NA | J8: Microsoft®WinRmtDsktpSvcsCAL AllLng License/SoftwareAssurancePack MVL 1License DvcCAL Additional Product No level | K8: Unidad | L8: Und | M8: Producto | N8: N/A | O8: N/A | P8: N/A | Q8: 6VC-01251 | R8: Suscripción Anual | S8: 8.556 | T8: 1 | U8: 1 | V8: =SUMIF(ResumenCotizacion!$C:$C,E8,ResumenCotizacion!$P:$P) -> 300 | W8: 8.556 | X8: =ROUND(W8/(1-VLOOKUP("Total porcentaje:",ResumenCotizacion!$F:$H,3,0)),2) -> 8.88 | Y8: 2664
A9: UT Soft-IGCategoría 57JQ-00341 | B9: 7JQ-00341Categoría 5 | D9: UT Soft-IG | E9: 7JQ-00341 | F9: 5 | G9: SQL server | H9: SQL server | I9: NA | J9: Microsoft®SQLSvrEnterpriseCore AllLng License/SoftwareAssurancePack MVL 2Licenses CoreLic Additional Product No level | K9: Unidad | L9: Und | M9: Producto | N9: N/A | O9: N/A | P9: N/A | Q9: 7JQ-00341 | R9: Suscripción Anual | S9: 1278.708 | T9: 1 | U9: 1 | V9: =SUMIF(ResumenCotizacion!$C:$C,E9,ResumenCotizacion!$P:$P) -> 2 | W9: 1278.708 | X9: =ROUND(W9/(1-VLOOKUP("Total porcentaje:",ResumenCotizacion!$F:$H,3,0)),2) -> 1326.46 | Y9: 2652.92
A10: UT Soft-IGCategoría 59EM-00562 | B10: 9EM-00562Categoría 5 | D10: UT Soft-IG | E10: 9EM-00562 | F10: 5 | G10: Windows | H10: Windows | I10: NA | J10: Microsoft®WindowsServerSTDCORE AllLng License/SoftwareAssurancePack MVL 2Licenses CoreLic Additional Product No level | K10: Unidad | L10: Und | M10: Producto | N10: N/A | O10: N/A | P10: N/A | Q10: 9EM-00562 | R10: Suscripción Anual | S10: 6.21 | T10: 1 | U10: 1 | V10: =SUMIF(ResumenCotizacion!$C:$C,E10,ResumenCotizacion!$P:$P) -> 200 | W10: 6.21 | X10: =ROUND(W10/(1-VLOOKUP("Total porcentaje:",ResumenCotizacion!$F:$H,3,0)),2) -> 6.44 | Y10: 1288
A11: UT Soft-IGCategoría 5D87-01057ANL | B11: D87-01057ANLCategoría 5 | D11: UT Soft-IG | E11: D87-01057ANL | F11: 5 | G11: Visio | H11: Visio | I11: NA | J11: Microsoft®Visio®Professional AllLng License/SoftwareAssurancePack MVL 1License Additional Product No level | K11: Unidad | L11: Und | M11: Producto | N11: N/A | O11: N/A | P11: N/A | Q11: D87-01057 | R11: Suscripción Anual | S11: 52.44 | T11: 1 | U11: 1 | V11: =SUMIF(ResumenCotizacion!$C:$C,E11,ResumenCotizacion!$P:$P) -> 60 | W11: 52.44 | X11: =ROUND(W11/(1-VLOOKUP("Total porcentaje:",ResumenCotizacion!$F:$H,3,0)),2) -> 54.4 | Y11: 3264
A12: UT Soft-IGCategoría 5H30-00237ANL | B12: H30-00237ANLCategoría 5 | D12: UT Soft-IG | E12: H30-00237ANL | F12: 5 | G12: Project | H12: Project | I12: NA | J12: Microsoft®ProjectProfessional AllLng License/SoftwareAssurancePack MVL 1License w/1ProjectSvrCAL Additional Product No level | K12: Unidad | L12: Und | M12: Producto | N12: N/A | O12: N/A | P12: N/A | Q12: H30-00237 | R12: Suscripción Anual | S12: 57.822 | T12: 1 | U12: 1 | V12: =SUMIF(ResumenCotizacion!$C:$C,E12,ResumenCotizacion!$P:$P) -> 60 | W12: 57.822 | X12: =ROUND(W12/(1-VLOOKUP("Total porcentaje:",ResumenCotizacion!$F:$H,3,0)),2) -> 59.98 | Y12: 3598.8
A13: UT Soft-IGCategoría 5R18-00095 | B13: R18-00095Categoría 5 | D13: UT Soft-IG | E13: R18-00095 | F13: 5 | G13: Windows | H13: Windows | I13: NA | J13: Microsoft®Windows®ServerCAL AllLng License/SoftwareAssurancePack MVL 1License DvcCAL Faculty No level | K13: Unidad | L13: Und | M13: Producto | N13: N/A | O13: N/A | P13: N/A | Q13: R18-00095 | R13: Suscripción Anual | S13: 2.484 | T13: 1 | U13: 1 | V13: =SUMIF(ResumenCotizacion!$C:$C,E13,ResumenCotizacion!$P:$P) -> 1084 | W13: 2.484 | X13: =ROUND(W13/(1-VLOOKUP("Total porcentaje:",ResumenCotizacion!$F:$H,3,0)),2) -> 2.58 | Y13: 2796.72
A14: Vision Software S.A.S.Categoría 56VC-01251ANL | B14: 6VC-01251ANLCategoría 5 | D14: Vision Software S.A.S. | E14: 6VC-01251ANL | F14: 5 | G14: Windows Remote | H14: Windows Remote | I14: NA | J14: Microsoft®WinRmtDsktpSvcsCAL AllLng License/SoftwareAssurancePack MVL 1License DvcCAL Additional Product No level | K14: Unidad | L14: Und | M14: Producto | N14: N/A | O14: N/A | P14: N/A | Q14: 6VC-01251 | R14: Suscripción Anual | S14: 34.44444444 | T14: 1 | U14: 1 | V14: =SUMIF(ResumenCotizacion!$C:$C,E14,ResumenCotizacion!$P:$P) -> 300 | W14: 34.44444444 | X14: =ROUND(W14/(1-VLOOKUP("Total porcentaje:",ResumenCotizacion!$F:$H,3,0)),2) -> 35.73 | Y14: 10719
A15: Vision Software S.A.S.Categoría 57JQ-00341 | B15: 7JQ-00341Categoría 5 | D15: Vision Software S.A.S. | E15: 7JQ-00341 | F15: 5 | G15: SQL server | H15: SQL server | I15: NA | J15: Microsoft®SQLSvrEnterpriseCore AllLng License/SoftwareAssurancePack MVL 2Licenses CoreLic Additional Product No level | K15: Unidad | L15: Und | M15: Producto | N15: N/A | O15: N/A | P15: N/A | Q15: 7JQ-00341 | R15: Suscripción Anual | S15: 4588.888889 | T15: 1 | U15: 1 | V15: =SUMIF(ResumenCotizacion!$C:$C,E15,ResumenCotizacion!$P:$P) -> 2 | W15: 4588.888889 | X15: =ROUND(W15/(1-VLOOKUP("Total porcentaje:",ResumenCotizacion!$F:$H,3,0)),2) -> 4760.26 | Y15: 9520.52
A16: Vision Software S.A.S.Categoría 59EM-00562 | B16: 9EM-00562Categoría 5 | D16: Vision Software S.A.S. | E16: 9EM-00562 | F16: 5 | G16: Windows | H16: Windows | I16: NA | J16: Microsoft®WindowsServerSTDCORE AllLng License/SoftwareAssurancePack MVL 2Licenses CoreLic Additional Product No level | K16: Unidad | L16: Und | M16: Producto | N16: N/A | O16: N/A | P16: N/A | Q16: 9EM-00562 | R16: Suscripción Anual | S16: 38.63636364 | T16: 1 | U16: 1 | V16: =SUMIF(ResumenCotizacion!$C:$C,E16,ResumenCotizacion!$P:$P) -> 200 | W16: 38.63636364 | X16: =ROUND(W16/(1-VLOOKUP("Total porcentaje:",ResumenCotizacion!$F:$H,3,0)),2) -> 40.08 | Y16: 8016
A17: Vision Software S.A.S.Categoría 5D87-01057ANL | B17: D87-01057ANLCategoría 5 | D17: Vision Software S.A.S. | E17: D87-01057ANL | F17: 5 | G17: Visio | H17: Visio | I17: NA | J17: Microsoft®Visio®Professional AllLng License/SoftwareAssurancePack MVL 1License Additional Product No level | K17: Unidad | L17: Und | M17: Producto | N17: N/A | O17: N/A | P17: N/A | Q17: D87-01057 | R17: Suscripción Anual | S17: 100 | T17: 1 | U17: 1 | V17: =SUMIF(ResumenCotizacion!$C:$C,E17,ResumenCotizacion!$P:$P) -> 60 | W17: 100 | X17: =ROUND(W17/(1-VLOOKUP("Total porcentaje:",ResumenCotizacion!$F:$H,3,0)),2) -> 103.73 | Y17: 6223.8
A18: Vision Software S.A.S.Categoría 5H30-00237ANL | B18: H30-00237ANLCategoría 5 | D18: Vision Software S.A.S. | E18: H30-00237ANL | F18: 5 | G18: Project | H18: Project | I18: NA | J18: Microsoft®ProjectProfessional AllLng License/SoftwareAssurancePack MVL 1License w/1ProjectSvrCAL Additional Product No level | K18: Unidad | L18: Und | M18: Producto | N18: N/A | O18: N/A | P18: N/A | Q18: H30-00237 | R18: Suscripción Anual | S18: 186.1702128 | T18: 1 | U18: 1 | V18: =SUMIF(ResumenCotizacion!$C:$C,E18,ResumenCotizacion!$P:$P) -> 60 | W18: 186.1702128 | X18: =ROUND(W18/(1-VLOOKUP("Total porcentaje:",ResumenCotizacion!$F:$H,3,0)),2) -> 193.12 | Y18: 11587.2
A19: Vision Software S.A.S.Categoría 5R18-00095 | B19: R18-00095Categoría 5 | D19: Vision Software S.A.S. | E19: R18-00095 | F19: 5 | G19: Windows | H19: Windows | I19: NA | J19: Microsoft®Windows®ServerCAL AllLng License/SoftwareAssurancePack MVL 1License DvcCAL Faculty No level | K19: Unidad | L19: Und | M19: Producto | N19: N/A | O19: N/A | P19: N/A | Q19: R18-00095 | R19: Suscripción Anual | S19: 10 | T19: 1 | U19: 1 | V19: =SUMIF(ResumenCotizacion!$C:$C,E19,ResumenCotizacion!$P:$P) -> 1084 | W19: 10 | X19: =ROUND(W19/(1-VLOOKUP("Total porcentaje:",ResumenCotizacion!$F:$H,3,0)),2) -> 10.37 | Y19: 11241.08
A20: Vision Software S.A.S.Categoría 5AAD-38392A | B20: AAD-38392ACategoría 5 | D20: Vision Software S.A.S. | E20: AAD-38392A | F20: 5 | G20: M365 Education A3 Unified | H20: M365 Education A3 Unified | I20: N/A | J20: Microsoft® M365 EDU A3 Unified Shared ALNG MonthlySub MVL Per User for CoreCAL Faculty A | K20: Unidad | L20: Und | M20: Producto | N20: N/A | O20: N/A | P20: N/A | Q20: AAD-38392 | R20: Suscripción Mensual con pago anual | S20: 4.18 | T20: 1 | U20: 0 | V20: =SUMIF(ResumenCotizacion!$C:$C,E20,ResumenCotizacion!$P:$P) -> 13008 | W20: 4.18 | X20: =ROUND(W20/(1-VLOOKUP("Total porcentaje:",ResumenCotizacion!$F:$H,3,0)),2) -> 4.34 | Y20: 56454.72
A21: UT Soft-IGCategoría 5AAD-38392A | B21: AAD-38392ACategoría 5 | D21: UT Soft-IG | E21: AAD-38392A | F21: 5 | G21: M365 Education A3 Unified | H21: M365 Education A3 Unified | I21: N/A | J21: Microsoft® M365 EDU A3 Unified Shared ALNG MonthlySub MVL Per User for CoreCAL Faculty A | K21: Unidad | L21: Und | M21: Producto | N21: N/A | O21: N/A | P21: N/A | Q21: AAD-38392 | R21: Suscripción Mensual con pago anual | S21: 4.76 | T21: 1 | U21: 0 | V21: =SUMIF(ResumenCotizacion!$C:$C,E21,ResumenCotizacion!$P:$P) -> 13008 | W21: 4.76 | X21: =ROUND(W21/(1-VLOOKUP("Total porcentaje:",ResumenCotizacion!$F:$H,3,0)),2) -> 4.94 | Y21: 64259.52
A22: Controles Empresariales S.A.S.Categoría 5AAD-38392A | B22: AAD-38392ACategoría 5 | D22: Controles Empresariales S.A.S. | E22: AAD-38392A | F22: 5 | G22: M365 Education A3 Unified | H22: M365 Education A3 Unified | I22: N/A | J22: Microsoft® M365 EDU A3 Unified Shared ALNG MonthlySub MVL Per User for CoreCAL Faculty A | K22: Unidad | L22: Und | M22: Producto | N22: N/A | O22: N/A | P22: N/A | Q22: AAD-38392 | R22: Suscripción Mensual con pago anual | S22: 5.06 | T22: 1 | U22: 0 | V22: =SUMIF(ResumenCotizacion!$C:$C,E22,ResumenCotizacion!$P:$P) -> 13008 | W22: 5.06 | X22: =ROUND(W22/(1-VLOOKUP("Total porcentaje:",ResumenCotizacion!$F:$H,3,0)),2) -> 5.25 | Y22: 68292

Sheet tempListas (hidden)
A1: PROVEEDOR
A2: Controles Empresariales S.A.S.
A3: UT Soft-IG
A4: Vision Software S.A.S.
